Workbook

Sheet Introductory page
C3: Calculation tool Multifunctional roofs (v2.0)
C5: Introduction | O5: Client
C6: Are you a building owner and considering the construction of a multifunctional roof. With this tool, you will have insights into the financial businesscase and the social costs and benefits of a multifunctional roof. For more information about multifunctional roofs, please visit:
C9: https://duurzaam010.nl/product/daken
C11: Aim
C12: This tool is designed to provide users insights into the financial businesscase and the social costs and benefits of a multifunctional roof.
O13: Partners
C14: The process
C15: This tool consists of three steps
C17: Step 1: Enter your data of the current state of the building and its roof.
C19: Step 2: Enter the characteristics of your design for the multifunctional roof.
C21: Step 3: Results for the financial businesscase and the social cost-benefit analysis. | O21: Part of
C23: The presented steps correspond to the sheets at the bottom of this introductory page.
C28: Colofon
C29: This tool has been made possible through financial support from the European LIFE-program.
C31: Municipality of Rotterdam: | E31: Sustainability program | J31: duurzaam@rotterdam.nl | M31: 010-4895489
C33: The tool is developed by Arcadis and CE Delft.
C34: Projectteam Arcadis: | E34: Jeroen Klooster (jeroen.klooster@arcadis.com), Robert de Kort (robert.dekort@arcadis.com),
E35: Jolijn Posma (jolijn.posma@arcadis.com), Douwe Fischer (douwe.fischer@arcadis.com),
E36: Andy Bruijns (andy.bruijns@arcadis.com)
C37: Projectteam CE Delft: | E37: Geert Warringa (warringa@ce.nl)
C39: Version 2.0 | E39: May 2021
C40: LIFE-projectnumber: | E40: LIFE16CCA/NL/000096

Sheet 1 Current state of the building
B2: Data current state of the building and its roof | Q2: l personen in huishouden | R2: Gemiddeld gebruik per jaar | S2: Kosten per maand in €*
C4: Instructions: The tool has been designed to use in about 10 minutes. Please fill al the yellow fields for the tool to work. To assist you in the proces, we have entered as many standard prices and default values as possible. You are free to change these if that will better reflect your specific case.
C6: Project
C7: Project name | O7: =F7 -> 0
C8: Version | O8: =F8 -> 0
C9: Date | F9: =TODAY() -> 2021-06-02 | O9: =F9 -> 2021-06-02
C10: Variant | O10: =F10 -> 0
C12: Current roof | F12: input | Q12: Bron: Milieu Centraal en RVO (berekening Nibud, 2020)
C13: Surface area | G13: m²
C14: Replacement period roof (every X years) | F14: 25 | G14: year | Q14: *Bij een gemiddeld elektriciteitstarief (tarief na 1 januari 2020) van 22,54 eurocent per kWh en vastrecht van € 24,66 per maand (incl. 21% BTW). Inclusief de jaarlijkse belastingteruggave van € 527,17 (2020). Afgeronde bedragen.
C15: Replacement costs current roof | F15: 45 | G15: per m² without tax | Q15: - | R15: 1825 | S15: 15 | X15: opnemen als baat (vermeden kosten)
C16: Maintenance costs current roof | F16: 4 | G16: per m² without tax | Q16: 1 | X16: Default waarde gebruiken
C17: Frequency of maintenance (every X years) | F17: 1 | G17: year | Q17: 2 | R17: 2860 | S17: 34 | X17: https://www.dakdekker-weetjes.nl/kosten-dakbedekking/#:~:text=Voor%20een%20dak%20van%2060,lang%20mee%2C%20namelijk%2025%20jaar.
Q18: 3
C19: Current functionality of the building | Q19: 4 | R19: 3400 | S19: 45
C20: Size of household (if relevant) | F20: - | G20: persons | Q20: 5 | R20: 3930 | S20: 55
C21: Current power usage | G21: KWh per year | R21: 4180 | S21: 59
C22: Type of neighbourhood | F22: Hoogbouw | Q22: Bedrijf
Q23: Gemiddeld per huishouden | R23: 2.832 kWh | S23: 34
P24: Keuze menu met wijktypologieën vanuit klimaateffectatlas
C26: Current value of the building
C30: Total surface area of the multifunctional roof
C31: Total surface area of the multifunctional roof | G31: m²
C33: Multifunctional roof as part of larger construction project
C34: Investment costs of total construction project

Sheet 2 Design of the roof
B3: Data for design of the new roof
B4: Which functions will your roof fullfil?
C5: Green roofs | L5: =C5 -> Green roofs | M5: FALSE | N5: =IF(M5=TRUE,"Ja","Nee") -> Nee
C6: Green roofs provide a green environment and are useful in cases of extreme dry, hot and wet weather.
C7: Blue Roofs | L7: =C7 -> Blue Roofs | M7: FALSE | N7: =IF(M7=TRUE,"Ja","Nee") -> Nee | S7: 2
C8: Blue roofs collect and store water. They play an important role with very wet or dry weather. | Q8: hebben we alle functies staan
C9: Yellow roofs | L9: =C9 -> Yellow roofs | M9: FALSE | N9: =IF(M9=TRUE,"Ja","Nee") -> Nee | Q9: Kosten | R9: 1 | S9: https://youtu.be/7OeNDSepbUY?t=31
C10: Yellow roofs generate renewable energy from the sun or the wind.
C11: Red Roofs | L11: =C11 -> Red Roofs | M11: FALSE | N11: =IF(M11=TRUE,"Ja","Nee") -> Nee | Q11: Kosten
C12: Red roofs have a social function. | R12: Ja | S12: Nee
C13: Orange roofs | M13: FALSE
C14: Orange roofs are used for transport and mobility. | M14: FALSE
C15: Purple roofs
C16: Purple roofs consist of living space. | M16: FALSE
C17: Grey roofs are for technical installations.
C18: Financial contributions of third parties.
B20: Green roofs provide a green environment and are useful in cases of extreme dry, hot and wet weather.
H21: Invoer
E22: How much surface area would you like to cover? | H22: 0 | I22: m²
E23: How many people have a view onto your roof? | H23: 0 tot 10 | I23: persons
E24: Are you combining multiple types of green roofs? | H24: Yes
E25: If you select "No", the tool will assume you will use a extensive or sedum-roof. | O25: dakvlakken toelichten: meerdere typen groen dak op het dak
E26: What type of green roof would you like to use? | O26: multifunctionele daken.nl i.p.v. deze link?
G27: Type 1 | H27: Type 2 | I27: Type 3 | O27: duurzaam010.nl | U27: Baten (koppelen aan aparte tabbladen per baat)
G28: Sedumroof | H28: Nature roof | I28: Roof garden | U28: Biodiversiteit: kwalitatief en mogelijk toepassen puntensysteem Max Klasberg (verkennen met Aster)
G29: *multiple types are possible
D30: Sedumroof | G30: Costs
E31: 0 | F31: m² | G31: Investment costs | H31: 50 | I31: per m² without tax | O31: https://groendaktotaal.nl/sedumdak-prijs.html?gclid=Cj0KCQjwo6D4BRDgARIsAA6uN18TEG1MnFGqIxtw8QyomnaqYDjxsPAnvj3k0PbYelRerr10wm69WroaAmicEALw_wcB
G32: Yearly maintenance costs | H32: 1.2 | I32: per m² without tax
G33: Replacement period (after X years) | H33: 60 | I33: Year | O33: Yes | U33: Gezondheid: koppelen aan aantal mensen die kunnen kijken op dak
O34: No
G35: An extensive green or sedum roof system contains vegetation, ranging from sedums to small grasses, herbs and flowering herbaceous plant.
O36: -
O37: Sedumroof | U37: Gezondheid: koppelen aan aantal mensen die kunnen kijken op dak
O38: Nature roof
O39: Roof garden
D40: Nature roof
E41: 0 | F41: m² | G41: Costs | H41: Invoer
G42: Investment costs | H42: 75 | I42: per m² without tax | U42: Gezondheid: koppelen aan aantal mensen die kunnen kijken op dak
G43: Yearly maintenance costs | H43: =H42*0.02 -> 1.5 | I43: per m² without tax
G44: Replacement period (after X years) | H44: 30 | I44: Year
G46: A nature roof contains vegetation with trees, shrubs, herbs grasses or other perannial plants, preferably indigneous. | U46: Gezondheid: koppelen aan aantal mensen die kunnen kijken op dak
D51: Roof garden | U51: Gezondheid: koppelen aan aantal mensen die kunnen kijken op dak
F52: m² | G52: Costs | N52: Plaatjes van Rotterdamse daken toevoegen
G53: Investment costs | H53: 90 | I53: per m² without tax
G54: Yearly maintenance costs | H54: =H53*0.02 -> 1.8 | I54: per m² without tax | O54: 0 tot 10
G55: Replacement period (after X years) | H55: 30 | I55: Year | O55: 10 tot 50 | U55: Gezondheid: koppelen aan aantal mensen die kunnen kijken op dak
O56: 50 tot 100
G57: A roof garden contains vegetation with grasses, perennial plants, shrubs and trees. The roof can be used as a meeting area or for recreational use. | O57: meer dan 100
U59: Gezondheid: koppelen aan aantal mensen die kunnen kijken op dak
E61: Total
E62: Surface area green roof | H62: =IF((E52+E41+E31<1),H22,(E52+E41+E31)) -> 0 | I62: m² | U62: Gezondheid: koppelen aan aantal mensen die kunnen kijken op dak
E63: Investment costs | H63: =IF(H24="Nee",(H22*H31),IF(H62>0,MROUND((H53*E52)+(H42*E41)+(H31*E31),100),0)) -> 0 | I63: without tax | U63: Vastgoedwaarde: afhankelijk van type wijk (zie invoer huidige situatie) en hoe groen het al is
E64: Maintenance costs | H64: =IF(H24="Nee",(H22*H32),IF(H62>1,MROUND((H54*E52)+(H43*E41)+(H32*E31),10),0)) -> 0 | I64: without tax per year | U64: Hittestress inpandig kwalitatief
B67: Blue roofs collect and store water. They play an important role with very wet or dry weather.
H68: Invoer
E69: Will your roof collect and store rainwater? | H69: Yes
E70: Investment costs | H70: 80 | I70: per m² without tax | U70: Default waarde instellen
E71: Maintenance costs | H71: 1 | I71: per m² without tax per year
E72: How many square meters do you intend to construct? | H72: 0 | I72: m² | N72: conditionalis format ting, bij geen invoer lichtgeel, bij geldige invoer lichtgroen
E73: How many mm water will your roof store? | H73: 50 | I73: mm
E74: Replacement period (after X years) | H74: 30 | I74: Year
N77: Instellen op default waarde | U77: Baten (koppelen aan aparte tabbladen per baat)
E78: Do you intend to reuse the stored water? | H78: No | I78: Ja/nee | N78: Yes | U78: Baten (koppelen aan aparte tabbladen per baat)
E79: How much of the stored water do you intend to reuse? | H79: =H73/1000*H72*1000 -> 0 | I79: liter (total) | N79: No | U79: Vermeden kosten alternatieve waterberging
E80: Water utilities rate | H80: 0.85 | I80: per m³ | U80: Minder watergebruik voor irrigatie
E81: What is your intended use for the collected water? | H81: Irrigatie | N81: Niet | P81: Grijswater als optie weglaten; alleen irrigatie
E83: Total
E84: Water retention | H84: =H73/1000*H72 -> 0 | I84: m³
E85: Investment costs | H85: =H70*H72 -> 0 | I85: without tax
E86: Maintenance costs | H86: =H71*H72 -> 0 | I86: without tax per year | AJ86: Irrigatie
AJ87: Grijswater
U88: Vermeden kosten alternatieve watervoorziening | AJ88: Niet
B89: Yellow roofs generate renewable energy from the sun or the wind. | U89: Waterkwaliteit: minder overstorten naar riool
H90: Invoer | N90: Noord | P90: Op welk dagdeel heeft u zon op uw dak? | T90: De richting van uw dak | U90: Zie https://www.vastelastenbond.nl/zonnepanelen/calculator/
E91: How much surface area will be used for renewable energy production? | H91: 0 | I91: m²
E92: Assumption: m² per solar panel | H92: 2.5 | I92: m²
E93: This sums up to: ... Panels | H93: =H91/H92*Q113 -> 0 | I93: panels
O94: (default waarde instellen)
E95: Investment costs | H95: 470 | I95: per panel without taks | O95: 4700 per 10 panelen | Q95: https://www.zonnepanelen-weetjes.nl/prijzen-zonnepanelen/
E96: Maintenance costs | H96: =H93*(3.5/5) -> 0 | I96: per roof per year without taks | O96: onderhoud 100-150 euro | Q96: https://www.zonnepanelen-weetjes.nl/zonnepanelen-kopen/onderhoud-zonnepanelen/#:~:text=Kosten%20onderhoud%20zonnepanelen&text=Wel%20is%20het%20verstandig%20om,%E2%82%AC%20100%20en%20%E2%82%AC%20150.
E97: Replacement period (after X years) | H97: 25 | I97: year | O97: 25 jaar garantie | Q97: https://www.zonneplan.nl/kenniscentrum/zonnepanelen/levensduur
E98: Total investment costs | H98: =IFERROR(H95*H93,0) -> 0
E100: Rate per kWh | H100: 0.22 | O100: Default waarde op 0,23 cent per kWh
N101: Noord
E102: Which type of roof do you have, please select one | N102: Oost | P102: rond het middaguur in de zon | T102: Zuid of Zuid/Oost of Zuid/West
E103: The shape of your roof has a large impact on the efficiency an the number of solar panels on your roof. | N103: Zuidoost | P103: in de namiddag/avond in de zon | T103: Zuid/West of West | U103: Baten (koppelen aan aparte tabbladen per baat)
N104: Zuid | P104: niet echt in de zon | T104: Noord of Noord/Oost of Noord/West | U104: Energieopbrengst: terugleveren voor 0,09 cent per KWh en verdiscontering voor 0,23 cent per KWh (alles wat je niet teruglevert maar wel opwekt)
N105: Zuidwest | U105: Luchtkwaliteit: vermeden uitstoot van NOx, SO2, VOS, fijnstoot, CO2
N106: West
N107: Noordwest
O109: Flat roof | P109: FALSE | Q109: 1
E110: The shape of your roof is…. | H110: =IF(P109=TRUE,O109,IF(P110=TRUE,O110,IF(P111=TRUE,O111,IF(P112=TRUE,O112,"")))) -> Slightly angled roof | O110: Slightly angled roof | P110: TRUE | Q110: 0.8
H111: =IF(COUNTIF(P109:P112,TRUE)>1,"Kies één type dak","") ->  | O111: Angled roof | P111: FALSE | Q111: 0.6
E112: Total | O112: Very angled roof | P112: FALSE | Q112: 0.4
E113: kWh energy per year | H113: ='Luchtkwaliteit en klimaat'!C29 -> 0 | I113: kWh per year | Q113: =IF(P109=TRUE,Q109,IF(P110=TRUE,Q110,IF(P111=TRUE,Q111,IF(P112=TRUE,Q112,"")))) -> 0.8
E114: Investment costs | H114: =MROUND(H98,100) -> 0 | I114: without tax | P114: =IF(COUNTIF(P109:P112,TRUE)>1,"Kies één type dak","") -> 
E115: Maintenance costs | H115: =MROUND(H96,100) -> 0 | I115: without tax per year
B118: Red roofs have a social function
E119: Commercial activities | H119: Input
E120: How much roof are you using for commercial activities? | I120: m²
E121: What is the function of the roof? | H121: - | I121: Choose a function
E122: Earnings per visitor | I122: per visitor | U122: Sociale cohesie (kwalitatief)
E123: Number of visitors per year | I123: per year | O123: Investering | P123: Onderhoud | Q123: Uitgave per bezoeker | U123: Ontmoeting
E124: Social activities | N124: Terrace/Bar | O124: 50 | P124: =0.02*O124 -> 1 | Q124: 10 | U124: Recreatie
E125: How much roof are you using for social activities? | H125: 0 | I125: m² | N125: Restaurant | O125: 75 | P125: =0.02*O125 -> 1.5 | Q125: 30
E126: What is the function of the roof? | H126: Private terrace | I126: Choose a function | N126: Attraction | O126: 30 | P126: 0.6 | Q126: 10
N127: - | O127: 0 | P127: 0 | Q127: 0
E128: Investment costs | H128: 50 | I128: per m²
E129: Maintenance costs | H129: 10 | I129: per m² per year | O129: (afhankelijk van functie, default waarde instellen) | U129: Private terrace
E130: Replacement period (after X years) | H130: 30 | I130: year | O130: (afhankelijk van functie, default waarde instellen) | U130: Meeting space
U131: Recreation
E132: Total | U132: Sports
E133: Earnings per year | H133: =MROUND(H122*H123,100) -> 0 | I133: per year | U133: None
E134: Investment costs | H134: =H128*(H120+H125) -> 0 | I134: without tax
E135: Maintenance costs | H135: =H129*(H120+H125) -> 0 | I135: without tax per year
O136: r (opbrengst), adv functies
B138: Orange roofs are used for transport and mobility.
H139: Invoer | O139: Nee | P139: =IF(H140="Ja",IF(H141="Ja",1,0),0) -> 0 | U139: Baten (koppelen aan aparte tabbladen per baat)
E140: Is your roof in connection with other roofs? | H140: Nee | N140: Indien ja dan door naar: | U140: Reistijdverkorting (kwalitatief)
E141: Does travel time decrease because of transport and mobilityvia your roof? | H141: Nee | U141: Gezondheid: nodigt uit tot bewegen (kwalitatief)
E142: Does the roof encourage exercise (running or other exercise)? | H142: Nee
E143: How much of the roof will be used for transport and mobility? | H143: 0 | I143: m²
E144: Investment costs | I144: per m² | N144: Default waarde
E145: Maintenance costs | I145: per m² without tax | N145: Default waarde
E146: Replacement period (after X years) | I146: year
N147: Default waarde
E148: Total
E149: Investment costs | H149: =MROUND(H144*H143,100) -> 0 | I149: without tax
E150: Maintenance costs | H150: =MROUND(H145*H143,100) -> 0 | I150: without tax per year
B154: Purple roofs consist of living space | N154: deze kleur is lelijk, kies voor allemaal iets moois
H155: Input
E156: How much living space are you adding | H156: 0 | I156: m²
E157: Investment costs | I157: per m²
E158: Maintenance costs | I158: per m²
E160: Total
E161: Investment costs | H161: =MROUND(H156*H157,100) -> 0 | I161: without tax
E162: Maintenance costs | H162: =MROUND(H158*H156,100) -> 0 | I162: without tax per year
N163: -
O165: (defaultwaarde per functie)
B166: Grey roofs are for technical installations
H167: Invoer
E168: How much area is "lost" to technical installations? | I168: m²
E169: Investment costs | I169: per m²
E170: Maintenance costs | I170: per m² per year
E171: Replacement period (after X years) | H171: 30 | I171: year
B174: Financial contributions of thrid parties
H175: Invoer
E176: Are subsidies available? | H176: Ja
E177: Subsidy 1 | H177: 0 | I177: per m²
E178: Surface area | H178: 0 | I178: m²
E179: Total subsidy 1 | H179: =H178*H177 -> 0
E180: Subsidy 2 | H180: 0 | I180: per m²
E181: Surface area | I181: m²
E182: Total subsidy 2 | H182: =H181*H180 -> 0
E183: Subsidy 3 | H183: 0 | I183: per m²
E184: Surface area | I184: m²
E185: Total subsidy 3 | H185: =H184*H183 -> 0
G187: Total: | H187: =MROUND(SUM(H185,H182,H179),100) -> 0
B190: Economic principles
H191: Input
E192: Discount rate | H192: 0.0225
E193: Period of analysis | H193: 40 | I193: year

Sheet 3 Results
B3: Project | J3: Results | U3: Multifunctional roof as part of a greater construction project | AS3: Aandeel investering multifunctioneel dak in totale investering | AT3: =IFERROR(G13/'1 Current state of the building'!F34*100%,0) -> 0
B4: Project name | C4: ='1 Current state of the building'!O7 -> 0 | F4: Type of Neighbourhood | G4: ='1 Current state of the building'!F22 -> Hoogbouw | J4: On this sheet, you will find the results of your calculations. The results are divided into three parts: | U4: ="The investment costs of the multifunctional roof are " & ROUND(AT3,2)*100 & "% of the total construction costs" -> The investment costs of the multifunctional roof are 0% of the total construction costs
B5: Version | C5: ='1 Current state of the building'!F8 -> 0 | J5: 1. The financial businesscase. | U5: Investment costs multifunctional roof: | X5: =IFERROR(MROUND(G13,100),"") -> 0 | Y5: without tax
B6: Date | C6: ='1 Current state of the building'!O9 -> 2021-06-02 | J6: 2. The social cost-benefit analysis | U6: Investment costs total construction project: | X6: ='1 Current state of the building'!F34 -> 0 | Y6: without tax
B7: Variant | C7: ='1 Current state of the building'!O7 -> 0 | J7: 3. The social benefits further elaborated upon.
B9: 1. Results of the financial businesscase. | F9: ="Period of analysis: " &'2 Design of the roof'!H193 & " year" -> Period of analysis: 40 year
C10: Balance of costs and benefits | J10: Yearly costs and benefits | U10: Investment costs for each type of roof
G12: =MROUND(BE36,1000) -> 0 | Q12: =IFERROR(MROUND(BA39,100),0) -> 0 | AA12: =Q32 -> 0
G13: =BF36 -> 0 | Q13: =IFERROR(BA40,0) -> 0 | AA13: =Q33 -> 0
G14: =BG36 -> 0 | Q14: =IFERROR(BA41,0) -> 0 | AA14: 0
Q15: =SUM(Q12:Q14) -> 0 | AA15: 0
AA16: =Q36 -> 0
AA17: 0
AA18: =Q38 -> 0
B28: ="2. Results of the social cost-benefit analysis, Period of analysis: " &'2 Design of the roof'!H193 & " year" -> 2. Results of the social cost-benefit analysis, Period of analysis: 40 year
C29: Balance of the social costs and benefits | I29: Costs for each type of roof | U29: Yearly social benefits
G30: =MROUND(BE33,1000) -> 0 | N30: Investering per dakfunctie | Y30: Baten per dakfunctie | BA30: 4155 | BB30: 77
G31: =BF33 -> 0 | N31: % van totale investering project | Y31: Water collection and storage (Blue roof) | Z31: =IFERROR(AA31/$AA$40,"") ->  | AA31: =IFERROR('NCW MKBA'!F9,0) -> 0 | AB31: per year | BA31: =BA30/365 -> 11.38356164 | BB31: =BB30/365 -> 0.2109589041 | BE31: MKBA
G32: =G30-G31 -> 0 | N32: Blue roof | P32: =IFERROR(Q32/$Q$40,"") ->  | Q32: ='NCW Financieel'!M6 -> 0 | Y32: Renewable energy (Yellow roof) | Z32: =IFERROR(AA32/$AA$40,"") ->  | AA32: =IFERROR('NCW MKBA'!G9,0) -> 0 | AB32: per year | BE32: Beneftis | BF32: Costs | BG32: Balance
N33: Yellow roof | Q33: =MROUND('NCW Financieel'!N6,1000) -> 0 | Y33: Avoided CO2 emissions (yellow roof) | AA33: =IFERROR('NCW MKBA'!H9,0) -> 0 | AB33: per year | BA33: 225 | BB33: kWh per paneel | BE33: =IFERROR('NCW MKBA'!E78,0) -> 0 | BF33: ='NCW MKBA'!E77 -> 0 | BG33: =BE33-BF33 -> 0
N34: Green roof | Q34: ='NCW Financieel'!L6 -> 0 | Y34: Avoided emissions (Yellow roof) | AA34: =IFERROR('NCW MKBA'!H9,0) -> 0 | AB34: per year | BE34: Financiële businesscase
N35: Purple roof | Q35: ='NCW Financieel'!Q6 -> 0 | Y35: Fine dust particles captured (green roof) | AA35: =IFERROR('NCW MKBA'!K9,0) -> 0 | AB35: per year | BE35: Beneftis | BF35: Costs | BG35: Balance
N36: Red roof | Q36: ='NCW Financieel'!O6 -> 0 | Y36: Avoided healthcare expenses (green roof) | AA36: =IFERROR('NCW MKBA'!L9,0) -> 0 | AB36: per year | BE36: =IFERROR('NCW Financieel'!E6,0) -> 0 | BF36: =IFERROR('NCW Financieel'!E80,0) -> 0 | BG36: =BE36-BF36 -> 0
N37: Grey roof | Q37: ='NCW Financieel'!R6 -> 0 | Y37: Avoided loss of work (green roof) | AA37: =IFERROR('NCW MKBA'!M9,0) -> 0 | AB37: per year
N38: Oranje roof | Q38: ='NCW Financieel'!P6 -> 0 | Y38: Commercial activities (red roof) | AA38: ='NCW Financieel'!F9 -> 0 | AB38: per year
AZ39: Yellow roof | BA39: =IFERROR('NCW Financieel'!G10+'NCW Financieel'!H10,0) -> 0
N40: Totale Investering: | P40: 1 | Q40: =MROUND(SUM(Q32:Q39),100) -> 0 | Y40: Totale baten: | Z40: 1 | AA40: =MROUND(SUM(AA31:AA37),100) -> 0 | AB40: per year | AZ40: Maintenance costs | BA40: =IFERROR('NCW Financieel'!U9*-1,0) -> 0 | BD40: Baten
AZ41: Red roof | BA41: =IFERROR('NCW Financieel'!F9,0) -> 0
AZ42: Balance | BA42: =SUM(BA39:BA41) -> 0 | BD42: Kosten
BD44: Saldo
B47: 3. The social benefits further elaborated upon.
B48: Blue roof: Water retention | E48: Other social benefits (qualitative) | I48: Contribution to BREEAM credits* | P48: Applicable? | T48: Contribution to biodiversity acoording to the nature point system** | AA48: Applicable
B49: Number of filled waterbarrels | E49: ='2 Design of the roof'!H156 -> 0 | F49: Living area | I49: SYN 5 | J49: Encouraging the administrative and/or financial participation of the users in the area to increase involvement and responsibility of the area. | P49: =IF('3 Results'!X5>1,"Yes","No") -> No | T49: 1 | U49: Green roof with sedum (>5-7cm)/30% | AA49: =IF('2 Design of the roof'!H62>0, "Yes","No") -> No
E50: ='2 Design of the roof'!P139 -> 0 | F50: Mobility | T50: 2 | U50: Green roof with sedum, grass, and herbs (>7-15cm)/30% | AA50: =IF('2 Design of the roof'!E41>0,"Yes","No") -> No
E51: ='2 Design of the roof'!H22 -> 0 | F51: Heatstress | T51: 3 | U51: Green roof with (sedum), grass and herbs, dwarf shrubs and shrubs (15-30 cm)/30% | AA51: =IF('2 Design of the roof'!E41>0,"Yes","No") -> No
E52: ='2 Design of the roof'!H22 -> 0 | F52: Image owner | I52: SYN 6 | J52: Encouraging cooperation and financial arrangements between stakeholders to increase the feasibility of the sustainability goals. | P52: =IF('3 Results'!X5>1,"Yes","No") -> No | T52: 4 | U52: Green roof with (grass), herbs, dwarf shrubs and shrubs (30-50 cm)/30% | AA52: =IF('2 Design of the roof'!E41>0,"Yes","No") -> No
B53: ='2 Design of the roof'!H72*'2 Design of the roof'!H73/1000/0.1 -> 0 | E53: ='2 Design of the roof'!H22 -> 0 | F53: Business climate | T53: 5 | U53: Green roof with herbs, dwarf shrubs, shrubs, and trees (>50 cm) /30% | AA53: =IF('2 Design of the roof'!E52>0,"Yes","No") -> No
B54: =IF('2 Design of the roof'!H78="Ja","This water is reused for:"&'2 Design of the roof'!H81,"") ->  | E54: ='2 Design of the roof'!H125 -> 0 | F54: Social cohesion | I54: BRO 3 | J54: Boosting local renewable energy production | P54: =IF('2 Design of the roof'!H113>1,"Yes","No") -> No | T54: 6 | U54: Only for high-rise buildings (> 50m): at least 100% of the footprint of the urban layer is returned as horizontal outdoor spaces such as roof gardens. At least 40% of this must be designed with greenery that contributes to biodiversity | AA54: Yes
B55: Yellow roof: renewable energy | E55: ='2 Design of the roof'!H72 -> 0 | F55: Waterquality | I55: BRO 4 | J55: Reducing the use of drinking water in the area | P55: =IF('2 Design of the roof'!H78="Ja","Yes","No") -> No
B56: Equivalent number of household | I56: RO 7 | J56: Preserving and increasing biodiversity and the ecological value and function on local and regional level. | P56: =IF('2 Design of the roof'!H62>0,"Yes","No") -> No
Y57: Number of nature points earned | AA57: =COUNTIF(AA49:AA55,"*Ja*") -> 0
I58: RO 8 | J58: Encouraging intensive use of space to minimise land use of the built environment. | P58: =IF('1 Current state of the building'!F31>1,"Yes","No") -> No
T59: Disclaimer: the use of the nature point system is indicative. No rights can be derived from this
I60: RO 11 | J60: Minimizing flood risk in the area after development | P60: =IF('2 Design of the roof'!H72>1,"Yes","No") -> No
I61: RO 12 | J61: Preventing damage tot the built environment and vital and vulnerable functions due to extreme precipatation | P61: =IF('2 Design of the roof'!H72>1,"Yes","No") -> No
B62: ='2 Design of the roof'!H93*'3 Results'!BA33/BA30 -> 0
I63: RO 13 | J63: Stimulating an optimal system for the use of people and transport needs (products) of an area and its environment with the lowest possible environmental impact. | P63: =IF('2 Design of the roof'!H143>1,"Yes","No") -> No
B64: ="Red roof: commercial activities of the: "&'2 Design of the roof'!H121&"" -> Red roof: commercial activities of the: - | I64: WEL 2 | J64: Promoting social cohesion in the area | P64: =IF('2 Design of the roof'!H125>1,"Yes","No") -> No
B65: Benefits (x € 1.000) | I65: WEL 3 | J65: Improving the quality of the environmental experience | P65: =IF('2 Design of the roof'!H22>1,"Yes","No") -> No
I66: KLI 1 | J66: Stimulating a good thermal outdoor climate for users and preventing heat stress | P66: =IF('2 Design of the roof'!H22>1,"Yes","No") -> No
I68: KLI 3 | J68: Optimizing local air quality. | P68: =IF('2 Design of the roof'!H22>1,"Yes","No") -> No
O69: Total: | P69: =COUNTIF(P49:P68,"*Ja*") -> 0 | Q69: =COUNTIF(I100:J112,"Ja") -> 0
I70: Disclaimer: the use of this table is indicative. No rights can be derived
Q78: Yes
Q79: No

Sheet What's next
C2: Next steps
B4: 1 | C4: Print the summary and results of your SCBA | E4: Client
B7: 2 | C7: Select this button to save your report
E9: Partners
B10: 3 | C10: ‘Are you wondering how to continue from this point on, please follow the links below for additional information’.
E15: Part of
E21: LIFE-projectnumber: LIFE16CCA/NL/000096

Sheet NCW Financieel (hidden)
A2: NCW BEREKENING: Financiele Business Case
D3: TOTAAL | E3: Opbrengsten | K3: KOSTEN
A5: Ncw per 1-1-2021 | D5: Totaal | E5: Subtotaal | F5: Opbrengsten exploitatie rood dak | G5: Energie opbrengsten teruglevering | H5: Energiebesparing verbruik | I5: Waterhergebruik | J5: Subsidie | K5: Subtotaal | L5: Groen | M5: Blauw | N5: Geel | O5: Rood | P5: Oranje | Q5: Paars | R5: Grijs | S5: Investeringskosten | T5: Investeringskosten regulier dak (negatief) | U5: Beheer- en onderhoud
D6: =NPV($B$9,D$10:D$49) -> 0 | E6: =SUM($E$10:INDEX(E$10:E$69,MATCH($Y$7,A10:A69,0))) -> 0 | F6: =NPV($B$9,F$10:INDEX(F$10:F$69,MATCH($Y$7,$A10:$A69,0))) -> 0 | G6: =NPV($B$9,G$10:INDEX(G$10:G$69,MATCH($Y$7,$A10:$A69,0))) -> 0 | H6: =NPV($B$9,H$10:INDEX(H$10:H$69,MATCH($Y$7,$A10:$A69,0))) -> 0 | I6: =NPV($B$9,I$10:INDEX(I$10:I$69,MATCH($Y$7,$A10:$A69,0))) -> 0 | J6: =NPV($B$9,J$10:INDEX(J$10:J$69,MATCH($Y$7,$A10:$A69,0))) -> 0 | K6: =NPV($B$9,K$10:INDEX(K$10:K$69,MATCH($Y$7,$A10:$A69,0))) -> 0 | L6: =NPV($B$9,L$10:INDEX(L$10:L$69,MATCH($Y$7,$A10:$A69,0))) -> 0 | M6: =NPV($B$9,M$10:INDEX(M$10:M$69,MATCH($Y$7,$A10:$A69,0))) -> 0 | N6: =NPV($B$9,N$10:INDEX(N$10:N$69,MATCH($Y$7,$A10:$A69,0))) -> 0 | O6: =NPV($B$9,O$10:INDEX(O$10:O$69,MATCH($Y$7,$A10:$A69,0))) -> 0 | P6: =NPV($B$9,P$10:INDEX(P$10:P$69,MATCH($Y$7,$A10:$A69,0))) -> 0 | Q6: =NPV($B$9,Q$10:INDEX(Q$10:Q$69,MATCH($Y$7,$A10:$A69,0))) -> 0 | R6: =NPV($B$9,R$10:INDEX(R$10:R$69,MATCH($Y$7,$A10:$A69,0))) -> 0 | S6: =NPV($B$9,S$10:INDEX(S$10:S$69,MATCH($Y$7,$A10:$A69,0))) -> 0 | T6: =NPV($B$9,T$10:INDEX(T$10:T$69,MATCH($Y$7,$A10:$A69,0))) -> 0 | U6: =NPV($B$9,U$10:INDEX(U$10:U$69,MATCH($Y$7,$A10:$A69,0))) -> 0
K7: =SUM(S6:U6) -> 0 | Y7: ='2 Design of the roof'!H193 -> 40 | AA7: Vervangingstermijnen
B8: Normaal | C8: CO2 | X8: 10 | AA8: Groen | AB8: Waterberging | AC8: Geel | AD8: Rood | AE8: Paars | AF8: Grijs
A9: Discontofactor | B9: ='2 Design of the roof'!H192 -> 0.0225 | C9: 0.029 | F9: =IF('2 Design of the roof'!H120>0,('2 Design of the roof'!$H$123*'2 Design of the roof'!$H$122),0) -> 0 | G9: =IF('Luchtkwaliteit en klimaat'!C29>'1 Current state of the building'!F21,('Luchtkwaliteit en klimaat'!C29-'1 Current state of the building'!F21)*'Luchtkwaliteit en klimaat'!C33,0) -> 0 | H9: ='Luchtkwaliteit en klimaat'!$E$36-G9 -> 0 | I9: =Waterretentie!C14 -> 0 | J9: ='2 Design of the roof'!H187 -> 0 | L9: ='2 Design of the roof'!H63 -> 0 | M9: ='2 Design of the roof'!H85 -> 0 | N9: ='2 Design of the roof'!H98 -> 0 | O9: ='2 Design of the roof'!H134 -> 0 | P9: ='2 Design of the roof'!H149 -> 0 | Q9: ='2 Design of the roof'!H161 -> 0 | R9: ='2 Design of the roof'!H169 -> 0 | S9: =SUM(L9:R9) -> 0 | T9: =-1*'1 Current state of the building'!F15*('2 Design of the roof'!H22+('2 Design of the roof'!H72)+'2 Design of the roof'!H120+'2 Design of the roof'!H125+'2 Design of the roof'!H143+'2 Design of the roof'!H156) -> 0 | U9: =('2 Design of the roof'!H162+'2 Design of the roof'!H150+'2 Design of the roof'!H135+'2 Design of the roof'!H115+'2 Design of the roof'!H86+'2 Design of the roof'!H64) -> 0 | V9: =SUM('2 Design of the roof'!H98+'2 Design of the roof'!H85+'2 Design of the roof'!F136+'2 Design of the roof'!H63+'2 Design of the roof'!H157) -> 0 | X9: 20 | AA9: ='2 Design of the roof'!H33 -> 60 | AB9: ='2 Design of the roof'!H74 -> 30 | AC9: ='2 Design of the roof'!H97 -> 25 | AD9: ='2 Design of the roof'!H130 -> 30 | AE9: 30 | AF9: ='2 Design of the roof'!H171 -> 30
A10: 1 | B10: =1/(1+$B$9)^A10 -> 0.97799511 | C10: =1/(1+$C$9)^A10 -> 0.9718172983 | D10: =E10-K10 -> 0 | E10: =SUM(F10:I10)+J6 -> 0 | F10: =F$9 -> 0 | G10: =G$9 -> 0 | H10: =H$9 -> 0 | I10: =I$9 -> 0 | J10: =J9 -> 0 | K10: =SUM(S10:U10) -> 0 | L10: =L9 -> 0 | M10: =M9 -> 0 | N10: =N9 -> 0 | O10: =O9 -> 0 | P10: 0 | Q10: 0 | R10: 0 | S10: =SUM(L10:R10) -> 0 | T10: =IF('1 Current state of the building'!$F$14=('NCW Financieel'!A10-0),'NCW Financieel'!$T$9,0) -> 0 | U10: 0 | X10: 30 | AA10: =INT($A10/AA$9)=($A10/AA$9) -> FALSE | AB10: =INT($A10/AB$9)=($A10/AB$9) -> FALSE | AC10: FALSE | AD10: FALSE | AE10: FALSE | AF10: FALSE
A11: 2 | B11: 0.9564744352 | C11: =1/(1+$C$9)^A11 -> 0.9444288614 | D11: =E11-K11 -> 0 | E11: =SUM(F11:I11) -> 0 | F11: =F$9 -> 0 | G11: =G$9 -> 0 | H11: =H$9 -> 0 | I11: 0 | K11: 0 | L11: =_xlfn.IFS($Y$7=$A11,0,AA11=TRUE,L$9,AA11=FALSE,0) -> 0 | M11: =_xlfn.IFS($Y$7=$A11,0,AB11=TRUE,M$9,AB11=FALSE,0) -> 0 | N11: =_xlfn.IFS($Y$7=$A11,0,AC11=TRUE,N$9,AC11=FALSE,0) -> 0 | O11: =_xlfn.IFS($Y$7=$A11,0,AD11=TRUE,O$9,AD11=FALSE,0) -> 0 | P11: =_xlfn.IFS($Y$7=$A11,0,AE11=TRUE,P$9,AE11=FALSE,0) -> 0 | Q11: =_xlfn.IFS($Y$7=$A11,0,AF11=TRUE,Q$9,AF11=FALSE,0) -> 0 | R11: =_xlfn.IFS($Y$7=$A11,0,AG11=TRUE,R$9,AG11=FALSE,0) -> 0 | S11: =SUM(L11:R11) -> 0 | T11: =IF('1 Current state of the building'!$F$14=('NCW Financieel'!A11-0),'NCW Financieel'!$T$9,0) -> 0 | U11: =$U$9 -> 0 | X11: 40 | AA11: =INT($A11/AA$9)=($A11/AA$9) -> FALSE | AB11: FALSE | AC11: FALSE | AD11: FALSE | AE11: FALSE | AF11: FALSE
A12: 3 | B12: 0.9354273205 | C12: 0.9178123045 | D12: 0 | E12: =SUM(F12:I12) -> 0 | F12: 0 | G12: 0 | H12: 0 | I12: 0 | K12: 0 | L12: =_xlfn.IFS($Y$7=$A12,0,AA12=TRUE,L$9,AA12=FALSE,0) -> 0 | M12: =_xlfn.IFS($Y$7=$A12,0,AB12=TRUE,M$9,AB12=FALSE,0) -> 0 | N12: =_xlfn.IFS($Y$7=$A12,0,AC12=TRUE,N$9,AC12=FALSE,0) -> 0 | O12: =_xlfn.IFS($Y$7=$A12,0,AD12=TRUE,O$9,AD12=FALSE,0) -> 0 | P12: =_xlfn.IFS($Y$7=$A12,0,AE12=TRUE,P$9,AE12=FALSE,0) -> 0 | Q12: =_xlfn.IFS($Y$7=$A12,0,AF12=TRUE,Q$9,AF12=FALSE,0) -> 0 | R12: =_xlfn.IFS($Y$7=$A12,0,AG12=TRUE,R$9,AG12=FALSE,0) -> 0 | S12: =SUM(L12:R12) -> 0 | T12: =IF('1 Current state of the building'!$F$14=('NCW Financieel'!A12-0),'NCW Financieel'!$T$9,0) -> 0 | U12: =$U$9 -> 0 | AA12: FALSE | AB12: FALSE | AC12: FALSE | AD12: FALSE | AE12: FALSE | AF12: FALSE
A13: 4 | B13: 0.9148433453 | C13: 0.8919458742 | D13: 0 | E13: 0 | F13: 0 | G13: 0 | H13: 0 | I13: 0 | K13: 0 | L13: =_xlfn.IFS($Y$7=$A13,0,AA13=TRUE,L$9,AA13=FALSE,0) -> 0 | M13: =_xlfn.IFS($Y$7=$A13,0,AB13=TRUE,M$9,AB13=FALSE,0) -> 0 | N13: =_xlfn.IFS($Y$7=$A13,0,AC13=TRUE,N$9,AC13=FALSE,0) -> 0 | O13: =_xlfn.IFS($Y$7=$A13,0,AD13=TRUE,O$9,AD13=FALSE,0) -> 0 | P13: =_xlfn.IFS($Y$7=$A13,0,AE13=TRUE,P$9,AE13=FALSE,0) -> 0 | Q13: =_xlfn.IFS($Y$7=$A13,0,AF13=TRUE,Q$9,AF13=FALSE,0) -> 0 | R13: =_xlfn.IFS($Y$7=$A13,0,AG13=TRUE,R$9,AG13=FALSE,0) -> 0 | S13: 0 | T13: =IF('1 Current state of the building'!$F$14=('NCW Financieel'!A13-0),'NCW Financieel'!$T$9,0) -> 0 | U13: 0 | AA13: FALSE | AB13: FALSE | AC13: FALSE | AD13: FALSE | AE13: FALSE | AF13: FALSE
A14: 5 | B14: 0.8947123181 | C14: 0.8668084297 | D14: 0 | E14: 0 | F14: 0 | G14: 0 | H14: 0 | I14: 0 | K14: 0 | L14: =_xlfn.IFS($Y$7=$A14,0,AA14=TRUE,L$9,AA14=FALSE,0) -> 0 | M14: =_xlfn.IFS($Y$7=$A14,0,AB14=TRUE,M$9,AB14=FALSE,0) -> 0 | N14: =_xlfn.IFS($Y$7=$A14,0,AC14=TRUE,N$9,AC14=FALSE,0) -> 0 | O14: =_xlfn.IFS($Y$7=$A14,0,AD14=TRUE,O$9,AD14=FALSE,0) -> 0 | P14: =_xlfn.IFS($Y$7=$A14,0,AE14=TRUE,P$9,AE14=FALSE,0) -> 0 | Q14: =_xlfn.IFS($Y$7=$A14,0,AF14=TRUE,Q$9,AF14=FALSE,0) -> 0 | R14: =_xlfn.IFS($Y$7=$A14,0,AG14=TRUE,R$9,AG14=FALSE,0) -> 0 | S14: 0 | T14: =IF('1 Current state of the building'!$F$14=('NCW Financieel'!A14-0),'NCW Financieel'!$T$9,0) -> 0 | U14: 0 | AA14: FALSE | AB14: FALSE | AC14: FALSE | AD14: FALSE | AE14: FALSE | AF14: FALSE
A15: 6 | B15: 0.875024272 | C15: 0.8423794264 | D15: 0 | E15: 0 | F15: 0 | G15: 0 | H15: 0 | I15: 0 | K15: 0 | L15: =_xlfn.IFS($Y$7=$A15,0,AA15=TRUE,L$9,AA15=FALSE,0) -> 0 | M15: =_xlfn.IFS($Y$7=$A15,0,AB15=TRUE,M$9,AB15=FALSE,0) -> 0 | N15: =_xlfn.IFS($Y$7=$A15,0,AC15=TRUE,N$9,AC15=FALSE,0) -> 0 | O15: =_xlfn.IFS($Y$7=$A15,0,AD15=TRUE,O$9,AD15=FALSE,0) -> 0 | P15: =_xlfn.IFS($Y$7=$A15,0,AE15=TRUE,P$9,AE15=FALSE,0) -> 0 | Q15: =_xlfn.IFS($Y$7=$A15,0,AF15=TRUE,Q$9,AF15=FALSE,0) -> 0 | R15: =_xlfn.IFS($Y$7=$A15,0,AG15=TRUE,R$9,AG15=FALSE,0) -> 0 | S15: 0 | T15: =IF('1 Current state of the building'!$F$14=('NCW Financieel'!A15-0),'NCW Financieel'!$T$9,0) -> 0 | U15: 0 | AA15: FALSE | AB15: FALSE | AC15: FALSE | AD15: FALSE | AE15: FALSE | AF15: FALSE
A16: 7 | B16: 0.8557694591 | C16: 0.8186388983 | D16: 0 | E16: 0 | F16: 0 | G16: 0 | H16: 0 | I16: 0 | K16: 0 | L16: =_xlfn.IFS($Y$7=$A16,0,AA16=TRUE,L$9,AA16=FALSE,0) -> 0 | M16: =_xlfn.IFS($Y$7=$A16,0,AB16=TRUE,M$9,AB16=FALSE,0) -> 0 | N16: =_xlfn.IFS($Y$7=$A16,0,AC16=TRUE,N$9,AC16=FALSE,0) -> 0 | O16: =_xlfn.IFS($Y$7=$A16,0,AD16=TRUE,O$9,AD16=FALSE,0) -> 0 | P16: =_xlfn.IFS($Y$7=$A16,0,AE16=TRUE,P$9,AE16=FALSE,0) -> 0 | Q16: =_xlfn.IFS($Y$7=$A16,0,AF16=TRUE,Q$9,AF16=FALSE,0) -> 0 | R16: =_xlfn.IFS($Y$7=$A16,0,AG16=TRUE,R$9,AG16=FALSE,0) -> 0 | S16: =SUM(L16:R16) -> 0 | T16: =IF('1 Current state of the building'!$F$14=('NCW Financieel'!A16-0),'NCW Financieel'!$T$9,0) -> 0 | U16: 0 | AA16: FALSE | AB16: FALSE | AC16: FALSE | AD16: FALSE | AE16: FALSE | AF16: FALSE
A17: 8 | B17: 0.8369383464 | C17: 0.7955674425 | D17: 0 | E17: 0 | F17: 0 | G17: 0 | H17: 0 | I17: 0 | K17: 0 | L17: =_xlfn.IFS($Y$7=$A17,0,AA17=TRUE,L$9,AA17=FALSE,0) -> 0 | M17: =_xlfn.IFS($Y$7=$A17,0,AB17=TRUE,M$9,AB17=FALSE,0) -> 0 | N17: =_xlfn.IFS($Y$7=$A17,0,AC17=TRUE,N$9,AC17=FALSE,0) -> 0 | O17: =_xlfn.IFS($Y$7=$A17,0,AD17=TRUE,O$9,AD17=FALSE,0) -> 0 | P17: =_xlfn.IFS($Y$7=$A17,0,AE17=TRUE,P$9,AE17=FALSE,0) -> 0 | Q17: =_xlfn.IFS($Y$7=$A17,0,AF17=TRUE,Q$9,AF17=FALSE,0) -> 0 | R17: =_xlfn.IFS($Y$7=$A17,0,AG17=TRUE,R$9,AG17=FALSE,0) -> 0 | S17: 0 | T17: =IF('1 Current state of the building'!$F$14=('NCW Financieel'!A17-0),'NCW Financieel'!$T$9,0) -> 0 | U17: 0 | AA17: FALSE | AB17: FALSE | AC17: FALSE | AD17: FALSE | AE17: FALSE | AF17: FALSE
A18: 9 | B18: 0.8185216101 | C18: 0.7731462026 | D18: 0 | E18: 0 | F18: 0 | G18: 0 | H18: 0 | I18: 0 | K18: 0 | L18: =_xlfn.IFS($Y$7=$A18,0,AA18=TRUE,L$9,AA18=FALSE,0) -> 0 | M18: =_xlfn.IFS($Y$7=$A18,0,AB18=TRUE,M$9,AB18=FALSE,0) -> 0 | N18: =_xlfn.IFS($Y$7=$A18,0,AC18=TRUE,N$9,AC18=FALSE,0) -> 0 | O18: =_xlfn.IFS($Y$7=$A18,0,AD18=TRUE,O$9,AD18=FALSE,0) -> 0 | P18: =_xlfn.IFS($Y$7=$A18,0,AE18=TRUE,P$9,AE18=FALSE,0) -> 0 | Q18: =_xlfn.IFS($Y$7=$A18,0,AF18=TRUE,Q$9,AF18=FALSE,0) -> 0 | R18: =_xlfn.IFS($Y$7=$A18,0,AG18=TRUE,R$9,AG18=FALSE,0) -> 0 | S18: 0 | T18: =IF('1 Current state of the building'!$F$14=('NCW Financieel'!A18-0),'NCW Financieel'!$T$9,0) -> 0 | U18: 0 | AA18: FALSE | AB18: FALSE | AC18: FALSE | AD18: FALSE | AE18: FALSE | AF18: FALSE
A19: 10 | B19: 0.8005101322 | C19: 0.7513568538 | D19: 0 | E19: 0 | F19: 0 | G19: 0 | H19: 0 | I19: 0 | K19: 0 | L19: =_xlfn.IFS($Y$7=$A19,0,AA19=TRUE,L$9,AA19=FALSE,0) -> 0 | M19: =_xlfn.IFS($Y$7=$A19,0,AB19=TRUE,M$9,AB19=FALSE,0) -> 0 | N19: =_xlfn.IFS($Y$7=$A19,0,AC19=TRUE,N$9,AC19=FALSE,0) -> 0 | O19: =_xlfn.IFS($Y$7=$A19,0,AD19=TRUE,O$9,AD19=FALSE,0) -> 0 | P19: =_xlfn.IFS($Y$7=$A19,0,AE19=TRUE,P$9,AE19=FALSE,0) -> 0 | Q19: =_xlfn.IFS($Y$7=$A19,0,AF19=TRUE,Q$9,AF19=FALSE,0) -> 0 | R19: =_xlfn.IFS($Y$7=$A19,0,AG19=TRUE,R$9,AG19=FALSE,0) -> 0 | S19: 0 | T19: =IF('1 Current state of the building'!$F$14=('NCW Financieel'!A19-0),'NCW Financieel'!$T$9,0) -> 0 | U19: 0 | AA19: FALSE | AB19: FALSE | AC19: FALSE | AD19: FALSE | AE19: FALSE | AF19: FALSE
A20: 11 | B20: 0.7828949948 | C20: 0.7301815878 | D20: 0 | E20: 0 | F20: 0 | G20: 0 | H20: 0 | I20: 0 | K20: 0 | L20: =_xlfn.IFS($Y$7=$A20,0,AA20=TRUE,L$9,AA20=FALSE,0) -> 0 | M20: =_xlfn.IFS($Y$7=$A20,0,AB20=TRUE,M$9,AB20=FALSE,0) -> 0 | N20: =_xlfn.IFS($Y$7=$A20,0,AC20=TRUE,N$9,AC20=FALSE,0) -> 0 | O20: =_xlfn.IFS($Y$7=$A20,0,AD20=TRUE,O$9,AD20=FALSE,0) -> 0 | P20: =_xlfn.IFS($Y$7=$A20,0,AE20=TRUE,P$9,AE20=FALSE,0) -> 0 | Q20: =_xlfn.IFS($Y$7=$A20,0,AF20=TRUE,Q$9,AF20=FALSE,0) -> 0 | R20: =_xlfn.IFS($Y$7=$A20,0,AG20=TRUE,R$9,AG20=FALSE,0) -> 0 | S20: 0 | T20: =IF('1 Current state of the building'!$F$14=('NCW Financieel'!A20-0),'NCW Financieel'!$T$9,0) -> 0 | U20: 0 | AA20: FALSE | AB20: FALSE | AC20: FALSE | AD20: FALSE | AE20: FALSE | AF20: FALSE
A21: 12 | B21: 0.7656674765 | C21: 0.709603098 | D21: 0 | E21: 0 | F21: 0 | G21: 0 | H21: 0 | I21: 0 | K21: 0 | L21: =_xlfn.IFS($Y$7=$A21,0,AA21=TRUE,L$9,AA21=FALSE,0) -> 0 | M21: =_xlfn.IFS($Y$7=$A21,0,AB21=TRUE,M$9,AB21=FALSE,0) -> 0 | N21: =_xlfn.IFS($Y$7=$A21,0,AC21=TRUE,N$9,AC21=FALSE,0) -> 0 | O21: =_xlfn.IFS($Y$7=$A21,0,AD21=TRUE,O$9,AD21=FALSE,0) -> 0 | P21: =_xlfn.IFS($Y$7=$A21,0,AE21=TRUE,P$9,AE21=FALSE,0) -> 0 | Q21: =_xlfn.IFS($Y$7=$A21,0,AF21=TRUE,Q$9,AF21=FALSE,0) -> 0 | R21: =_xlfn.IFS($Y$7=$A21,0,AG21=TRUE,R$9,AG21=FALSE,0) -> 0 | S21: 0 | T21: =IF('1 Current state of the building'!$F$14=('NCW Financieel'!A21-0),'NCW Financieel'!$T$9,0) -> 0 | U21: 0 | AA21: FALSE | AB21: FALSE | AC21: FALSE | AD21: FALSE | AE21: FALSE | AF21: FALSE
A22: 13 | B22: 0.748819048 | C22: 0.6896045656 | D22: 0 | E22: 0 | F22: 0 | G22: 0 | H22: 0 | I22: 0 | K22: 0 | L22: =_xlfn.IFS($Y$7=$A22,0,AA22=TRUE,L$9,AA22=FALSE,0) -> 0 | M22: =_xlfn.IFS($Y$7=$A22,0,AB22=TRUE,M$9,AB22=FALSE,0) -> 0 | N22: =_xlfn.IFS($Y$7=$A22,0,AC22=TRUE,N$9,AC22=FALSE,0) -> 0 | O22: =_xlfn.IFS($Y$7=$A22,0,AD22=TRUE,O$9,AD22=FALSE,0) -> 0 | P22: =_xlfn.IFS($Y$7=$A22,0,AE22=TRUE,P$9,AE22=FALSE,0) -> 0 | Q22: =_xlfn.IFS($Y$7=$A22,0,AF22=TRUE,Q$9,AF22=FALSE,0) -> 0 | R22: =_xlfn.IFS($Y$7=$A22,0,AG22=TRUE,R$9,AG22=FALSE,0) -> 0 | S22: 0 | T22: =IF('1 Current state of the building'!$F$14=('NCW Financieel'!A22-0),'NCW Financieel'!$T$9,0) -> 0 | U22: 0 | AA22: FALSE | AB22: FALSE | AC22: FALSE | AD22: FALSE | AE22: FALSE | AF22: FALSE
A23: 14 | B23: 0.7323413672 | C23: 0.6701696458 | D23: 0 | E23: 0 | F23: 0 | G23: 0 | H23: 0 | I23: 0 | K23: 0 | L23: =_xlfn.IFS($Y$7=$A23,0,AA23=TRUE,L$9,AA23=FALSE,0) -> 0 | M23: =_xlfn.IFS($Y$7=$A23,0,AB23=TRUE,M$9,AB23=FALSE,0) -> 0 | N23: =_xlfn.IFS($Y$7=$A23,0,AC23=TRUE,N$9,AC23=FALSE,0) -> 0 | O23: =_xlfn.IFS($Y$7=$A23,0,AD23=TRUE,O$9,AD23=FALSE,0) -> 0 | P23: =_xlfn.IFS($Y$7=$A23,0,AE23=TRUE,P$9,AE23=FALSE,0) -> 0 | Q23: =_xlfn.IFS($Y$7=$A23,0,AF23=TRUE,Q$9,AF23=FALSE,0) -> 0 | R23: =_xlfn.IFS($Y$7=$A23,0,AG23=TRUE,R$9,AG23=FALSE,0) -> 0 | S23: 0 | T23: =IF('1 Current state of the building'!$F$14=('NCW Financieel'!A23-0),'NCW Financieel'!$T$9,0) -> 0 | U23: 0 | AA23: FALSE | AB23: FALSE | AC23: FALSE | AD23: FALSE | AE23: FALSE | AF23: FALSE
A24: 15 | B24: 0.716226276 | C24: 0.6512824546 | D24: 0 | E24: 0 | F24: 0 | G24: 0 | H24: 0 | I24: 0 | K24: 0 | L24: =_xlfn.IFS($Y$7=$A24,0,AA24=TRUE,L$9,AA24=FALSE,0) -> 0 | M24: =_xlfn.IFS($Y$7=$A24,0,AB24=TRUE,M$9,AB24=FALSE,0) -> 0 | N24: =_xlfn.IFS($Y$7=$A24,0,AC24=TRUE,N$9,AC24=FALSE,0) -> 0 | O24: =_xlfn.IFS($Y$7=$A24,0,AD24=TRUE,O$9,AD24=FALSE,0) -> 0 | P24: =_xlfn.IFS($Y$7=$A24,0,AE24=TRUE,P$9,AE24=FALSE,0) -> 0 | Q24: =_xlfn.IFS($Y$7=$A24,0,AF24=TRUE,Q$9,AF24=FALSE,0) -> 0 | R24: =_xlfn.IFS($Y$7=$A24,0,AG24=TRUE,R$9,AG24=FALSE,0) -> 0 | S24: =SUM(L24:R24) -> 0 | T24: =IF('1 Current state of the building'!$F$14=('NCW Financieel'!A24-0),'NCW Financieel'!$T$9,0) -> 0 | U24: 0 | AA24: FALSE | AB24: FALSE | AC24: FALSE | AD24: FALSE | AE24: FALSE | AF24: FALSE
A25: 16 | B25: 0.7004657956 | C25: 0.6329275555 | D25: 0 | E25: 0 | F25: 0 | G25: 0 | H25: 0 | I25: 0 | K25: 0 | L25: =_xlfn.IFS($Y$7=$A25,0,AA25=TRUE,L$9,AA25=FALSE,0) -> 0 | M25: =_xlfn.IFS($Y$7=$A25,0,AB25=TRUE,M$9,AB25=FALSE,0) -> 0 | N25: =_xlfn.IFS($Y$7=$A25,0,AC25=TRUE,N$9,AC25=FALSE,0) -> 0 | O25: =_xlfn.IFS($Y$7=$A25,0,AD25=TRUE,O$9,AD25=FALSE,0) -> 0 | P25: =_xlfn.IFS($Y$7=$A25,0,AE25=TRUE,P$9,AE25=FALSE,0) -> 0 | Q25: =_xlfn.IFS($Y$7=$A25,0,AF25=TRUE,Q$9,AF25=FALSE,0) -> 0 | R25: =_xlfn.IFS($Y$7=$A25,0,AG25=TRUE,R$9,AG25=FALSE,0) -> 0 | S25: 0 | T25: =IF('1 Current state of the building'!$F$14=('NCW Financieel'!A25-0),'NCW Financieel'!$T$9,0) -> 0 | U25: 0 | AA25: FALSE | AB25: FALSE | AC25: FALSE | AD25: FALSE | AE25: FALSE | AF25: FALSE
A26: 17 | B26: 0.6850521228 | C26: 0.6150899471 | D26: 0 | E26: 0 | F26: 0 | G26: 0 | H26: 0 | I26: 0 | K26: 0 | L26: =_xlfn.IFS($Y$7=$A26,0,AA26=TRUE,L$9,AA26=FALSE,0) -> 0 | M26: =_xlfn.IFS($Y$7=$A26,0,AB26=TRUE,M$9,AB26=FALSE,0) -> 0 | N26: =_xlfn.IFS($Y$7=$A26,0,AC26=TRUE,N$9,AC26=FALSE,0) -> 0 | O26: =_xlfn.IFS($Y$7=$A26,0,AD26=TRUE,O$9,AD26=FALSE,0) -> 0 | P26: =_xlfn.IFS($Y$7=$A26,0,AE26=TRUE,P$9,AE26=FALSE,0) -> 0 | Q26: =_xlfn.IFS($Y$7=$A26,0,AF26=TRUE,Q$9,AF26=FALSE,0) -> 0 | R26: =_xlfn.IFS($Y$7=$A26,0,AG26=TRUE,R$9,AG26=FALSE,0) -> 0 | S26: 0 | T26: =IF('1 Current state of the building'!$F$14=('NCW Financieel'!A26-0),'NCW Financieel'!$T$9,0) -> 0 | U26: 0 | AA26: FALSE | AB26: FALSE | AC26: FALSE | AD26: FALSE | AE26: FALSE | AF26: FALSE
A27: 18 | B27: 0.6699776262 | C27: 0.5977550506 | D27: 0 | E27: 0 | F27: 0 | G27: 0 | H27: 0 | I27: 0 | K27: 0 | L27: =_xlfn.IFS($Y$7=$A27,0,AA27=TRUE,L$9,AA27=FALSE,0) -> 0 | M27: =_xlfn.IFS($Y$7=$A27,0,AB27=TRUE,M$9,AB27=FALSE,0) -> 0 | N27: =_xlfn.IFS($Y$7=$A27,0,AC27=TRUE,N$9,AC27=FALSE,0) -> 0 | O27: =_xlfn.IFS($Y$7=$A27,0,AD27=TRUE,O$9,AD27=FALSE,0) -> 0 | P27: =_xlfn.IFS($Y$7=$A27,0,AE27=TRUE,P$9,AE27=FALSE,0) -> 0 | Q27: =_xlfn.IFS($Y$7=$A27,0,AF27=TRUE,Q$9,AF27=FALSE,0) -> 0 | R27: =_xlfn.IFS($Y$7=$A27,0,AG27=TRUE,R$9,AG27=FALSE,0) -> 0 | S27: 0 | T27: =IF('1 Current state of the building'!$F$14=('NCW Financieel'!A27-0),'NCW Financieel'!$T$9,0) -> 0 | U27: 0 | AA27: FALSE | AB27: FALSE | AC27: FALSE | AD27: FALSE | AE27: FALSE | AF27: FALSE
A28: 19 | B28: 0.6552348423 | C28: 0.5809086983 | D28: 0 | E28: 0 | F28: 0 | G28: 0 | H28: 0 | I28: 0 | K28: 0 | L28: =_xlfn.IFS($Y$7=$A28,0,AA28=TRUE,L$9,AA28=FALSE,0) -> 0 | M28: =_xlfn.IFS($Y$7=$A28,0,AB28=TRUE,M$9,AB28=FALSE,0) -> 0 | N28: =_xlfn.IFS($Y$7=$A28,0,AC28=TRUE,N$9,AC28=FALSE,0) -> 0 | O28: =_xlfn.IFS($Y$7=$A28,0,AD28=TRUE,O$9,AD28=FALSE,0) -> 0 | P28: =_xlfn.IFS($Y$7=$A28,0,AE28=TRUE,P$9,AE28=FALSE,0) -> 0 | Q28: =_xlfn.IFS($Y$7=$A28,0,AF28=TRUE,Q$9,AF28=FALSE,0) -> 0 | R28: =_xlfn.IFS($Y$7=$A28,0,AG28=TRUE,R$9,AG28=FALSE,0) -> 0 | S28: 0 | T28: =IF('1 Current state of the building'!$F$14=('NCW Financieel'!A28-0),'NCW Financieel'!$T$9,0) -> 0 | U28: 0 | AA28: FALSE | AB28: FALSE | AC28: FALSE | AD28: FALSE | AE28: FALSE | AF28: FALSE
A29: 20 | B29: 0.6408164717 | C29: 0.5645371218 | D29: 0 | E29: 0 | F29: 0 | G29: 0 | H29: 0 | I29: 0 | K29: 0 | L29: =_xlfn.IFS($Y$7=$A29,0,AA29=TRUE,L$9,AA29=FALSE,0) -> 0 | M29: =_xlfn.IFS($Y$7=$A29,0,AB29=TRUE,M$9,AB29=FALSE,0) -> 0 | N29: =_xlfn.IFS($Y$7=$A29,0,AC29=TRUE,N$9,AC29=FALSE,0) -> 0 | O29: =_xlfn.IFS($Y$7=$A29,0,AD29=TRUE,O$9,AD29=FALSE,0) -> 0 | P29: =_xlfn.IFS($Y$7=$A29,0,AE29=TRUE,P$9,AE29=FALSE,0) -> 0 | Q29: =_xlfn.IFS($Y$7=$A29,0,AF29=TRUE,Q$9,AF29=FALSE,0) -> 0 | R29: =_xlfn.IFS($Y$7=$A29,0,AG29=TRUE,R$9,AG29=FALSE,0) -> 0 | S29: =SUM(L29:R29) -> 0 | T29: =IF('1 Current state of the building'!$F$14=('NCW Financieel'!A29-0),'NCW Financieel'!$T$9,0) -> 0 | U29: 0 | AA29: FALSE | AB29: FALSE | AC29: =INT($A29/AC$9)=($A29/AC$9) -> FALSE | AD29: FALSE | AE29: FALSE | AF29: FALSE
A30: 21 | B30: 0.6267153757 | C30: 0.5486269405 | D30: 0 | E30: 0 | F30: 0 | G30: 0 | H30: 0 | I30: 0 | K30: 0 | L30: =_xlfn.IFS($Y$7=$A30,0,AA30=TRUE,L$9,AA30=FALSE,0) -> 0 | M30: =_xlfn.IFS($Y$7=$A30,0,AB30=TRUE,M$9,AB30=FALSE,0) -> 0 | N30: =_xlfn.IFS($Y$7=$A30,0,AC30=TRUE,N$9,AC30=FALSE,0) -> 0 | O30: =_xlfn.IFS($Y$7=$A30,0,AD30=TRUE,O$9,AD30=FALSE,0) -> 0 | P30: =_xlfn.IFS($Y$7=$A30,0,AE30=TRUE,P$9,AE30=FALSE,0) -> 0 | Q30: =_xlfn.IFS($Y$7=$A30,0,AF30=TRUE,Q$9,AF30=FALSE,0) -> 0 | R30: =_xlfn.IFS($Y$7=$A30,0,AG30=TRUE,R$9,AG30=FALSE,0) -> 0 | S30: 0 | T30: =IF('1 Current state of the building'!$F$14=('NCW Financieel'!A30-0),'NCW Financieel'!$T$9,0) -> 0 | U30: 0 | AA30: FALSE | AB30: FALSE | AC30: FALSE | AD30: FALSE | AE30: FALSE | AF30: FALSE
A31: 22 | B31: 0.6129245728 | C31: 0.5331651512 | D31: 0 | E31: 0 | F31: 0 | G31: 0 | H31: 0 | I31: 0 | K31: 0 | L31: =_xlfn.IFS($Y$7=$A31,0,AA31=TRUE,L$9,AA31=FALSE,0) -> 0 | M31: =_xlfn.IFS($Y$7=$A31,0,AB31=TRUE,M$9,AB31=FALSE,0) -> 0 | N31: =_xlfn.IFS($Y$7=$A31,0,AC31=TRUE,N$9,AC31=FALSE,0) -> 0 | O31: =_xlfn.IFS($Y$7=$A31,0,AD31=TRUE,O$9,AD31=FALSE,0) -> 0 | P31: =_xlfn.IFS($Y$7=$A31,0,AE31=TRUE,P$9,AE31=FALSE,0) -> 0 | Q31: =_xlfn.IFS($Y$7=$A31,0,AF31=TRUE,Q$9,AF31=FALSE,0) -> 0 | R31: =_xlfn.IFS($Y$7=$A31,0,AG31=TRUE,R$9,AG31=FALSE,0) -> 0 | S31: 0 | T31: =IF('1 Current state of the building'!$F$14=('NCW Financieel'!A31-0),'NCW Financieel'!$T$9,0) -> 0 | U31: 0 | AA31: FALSE | AB31: FALSE | AC31: FALSE | AD31: FALSE | AE31: FALSE | AF31: FALSE
A32: 23 | B32: 0.599437235 | C32: 0.5181391168 | D32: 0 | E32: 0 | F32: 0 | G32: 0 | H32: 0 | I32: 0 | K32: 0 | L32: =_xlfn.IFS($Y$7=$A32,0,AA32=TRUE,L$9,AA32=FALSE,0) -> 0 | M32: =_xlfn.IFS($Y$7=$A32,0,AB32=TRUE,M$9,AB32=FALSE,0) -> 0 | N32: =_xlfn.IFS($Y$7=$A32,0,AC32=TRUE,N$9,AC32=FALSE,0) -> 0 | O32: =_xlfn.IFS($Y$7=$A32,0,AD32=TRUE,O$9,AD32=FALSE,0) -> 0 | P32: =_xlfn.IFS($Y$7=$A32,0,AE32=TRUE,P$9,AE32=FALSE,0) -> 0 | Q32: =_xlfn.IFS($Y$7=$A32,0,AF32=TRUE,Q$9,AF32=FALSE,0) -> 0 | R32: =_xlfn.IFS($Y$7=$A32,0,AG32=TRUE,R$9,AG32=FALSE,0) -> 0 | S32: 0 | T32: =IF('1 Current state of the building'!$F$14=('NCW Financieel'!A32-0),'NCW Financieel'!$T$9,0) -> 0 | U32: 0 | AA32: FALSE | AB32: FALSE | AC32: FALSE | AD32: FALSE | AE32: FALSE | AF32: FALSE
A33: 24 | B33: 0.5862466846 | C33: 0.5035365566 | D33: 0 | E33: 0 | F33: 0 | G33: 0 | H33: 0 | I33: 0 | K33: 0 | L33: =_xlfn.IFS($Y$7=$A33,0,AA33=TRUE,L$9,AA33=FALSE,0) -> 0 | M33: =_xlfn.IFS($Y$7=$A33,0,AB33=TRUE,M$9,AB33=FALSE,0) -> 0 | N33: =_xlfn.IFS($Y$7=$A33,0,AC33=TRUE,N$9,AC33=FALSE,0) -> 0 | O33: =_xlfn.IFS($Y$7=$A33,0,AD33=TRUE,O$9,AD33=FALSE,0) -> 0 | P33: =_xlfn.IFS($Y$7=$A33,0,AE33=TRUE,P$9,AE33=FALSE,0) -> 0 | Q33: =_xlfn.IFS($Y$7=$A33,0,AF33=TRUE,Q$9,AF33=FALSE,0) -> 0 | R33: =_xlfn.IFS($Y$7=$A33,0,AG33=TRUE,R$9,AG33=FALSE,0) -> 0 | S33: 0 | T33: =IF('1 Current state of the building'!$F$14=('NCW Financieel'!A33-0),'NCW Financieel'!$T$9,0) -> 0 | U33: 0 | AA33: FALSE | AB33: FALSE | AC33: FALSE | AD33: FALSE | AE33: FALSE | AF33: FALSE
A34: 25 | B34: 0.5733463908 | C34: 0.4893455361 | D34: 0 | E34: 0 | F34: 0 | G34: 0 | H34: 0 | I34: 0 | K34: 0 | L34: =_xlfn.IFS($Y$7=$A34,0,AA34=TRUE,L$9,AA34=FALSE,0) -> 0 | M34: =_xlfn.IFS($Y$7=$A34,0,AB34=TRUE,M$9,AB34=FALSE,0) -> 0 | N34: =_xlfn.IFS($Y$7=$A34,0,AC34=TRUE,N$9,AC34=FALSE,0) -> 0 | O34: =_xlfn.IFS($Y$7=$A34,0,AD34=TRUE,O$9,AD34=FALSE,0) -> 0 | P34: =_xlfn.IFS($Y$7=$A34,0,AE34=TRUE,P$9,AE34=FALSE,0) -> 0 | Q34: =_xlfn.IFS($Y$7=$A34,0,AF34=TRUE,Q$9,AF34=FALSE,0) -> 0 | R34: =_xlfn.IFS($Y$7=$A34,0,AG34=TRUE,R$9,AG34=FALSE,0) -> 0 | S34: 0 | T34: =IF('1 Current state of the building'!$F$14=('NCW Financieel'!A34-0),'NCW Financieel'!$T$9,0) -> 0 | U34: 0 | AA34: FALSE | AB34: FALSE | AC34: TRUE | AD34: FALSE | AE34: FALSE | AF34: FALSE
A35: 26 | B35: 0.5607299666 | C35: 0.4755544568 | D35: 0 | E35: 0 | F35: 0 | G35: 0 | H35: 0 | I35: 0 | K35: 0 | L35: =_xlfn.IFS($Y$7=$A35,0,AA35=TRUE,L$9,AA35=FALSE,0) -> 0 | M35: =_xlfn.IFS($Y$7=$A35,0,AB35=TRUE,M$9,AB35=FALSE,0) -> 0 | N35: =_xlfn.IFS($Y$7=$A35,0,AC35=TRUE,N$9,AC35=FALSE,0) -> 0 | O35: =_xlfn.IFS($Y$7=$A35,0,AD35=TRUE,O$9,AD35=FALSE,0) -> 0 | P35: =_xlfn.IFS($Y$7=$A35,0,AE35=TRUE,P$9,AE35=FALSE,0) -> 0 | Q35: =_xlfn.IFS($Y$7=$A35,0,AF35=TRUE,Q$9,AF35=FALSE,0) -> 0 | R35: =_xlfn.IFS($Y$7=$A35,0,AG35=TRUE,R$9,AG35=FALSE,0) -> 0 | S35: 0 | T35: =IF('1 Current state of the building'!$F$14=('NCW Financieel'!A35-0),'NCW Financieel'!$T$9,0) -> 0 | U35: 0 | AA35: FALSE | AB35: FALSE | AC35: FALSE | AD35: FALSE | AE35: FALSE | AF35: FALSE
A36: 27 | B36: 0.5483911654 | C36: 0.4621520475 | D36: 0 | E36: 0 | F36: 0 | G36: 0 | H36: 0 | I36: 0 | K36: 0 | L36: =_xlfn.IFS($Y$7=$A36,0,AA36=TRUE,L$9,AA36=FALSE,0) -> 0 | M36: =_xlfn.IFS($Y$7=$A36,0,AB36=TRUE,M$9,AB36=FALSE,0) -> 0 | N36: =_xlfn.IFS($Y$7=$A36,0,AC36=TRUE,N$9,AC36=FALSE,0) -> 0 | O36: =_xlfn.IFS($Y$7=$A36,0,AD36=TRUE,O$9,AD36=FALSE,0) -> 0 | P36: =_xlfn.IFS($Y$7=$A36,0,AE36=TRUE,P$9,AE36=FALSE,0) -> 0 | Q36: =_xlfn.IFS($Y$7=$A36,0,AF36=TRUE,Q$9,AF36=FALSE,0) -> 0 | R36: =_xlfn.IFS($Y$7=$A36,0,AG36=TRUE,R$9,AG36=FALSE,0) -> 0 | S36: 0 | T36: =IF('1 Current state of the building'!$F$14=('NCW Financieel'!A36-0),'NCW Financieel'!$T$9,0) -> 0 | U36: 0 | AA36: FALSE | AB36: FALSE | AC36: FALSE | AD36: FALSE | AE36: FALSE | AF36: FALSE
A37: 28 | B37: 0.5363238781 | C37: 0.4491273542 | D37: 0 | E37: 0 | F37: 0 | G37: 0 | H37: 0 | I37: 0 | K37: 0 | L37: =_xlfn.IFS($Y$7=$A37,0,AA37=TRUE,L$9,AA37=FALSE,0) -> 0 | M37: =_xlfn.IFS($Y$7=$A37,0,AB37=TRUE,M$9,AB37=FALSE,0) -> 0 | N37: =_xlfn.IFS($Y$7=$A37,0,AC37=TRUE,N$9,AC37=FALSE,0) -> 0 | O37: =_xlfn.IFS($Y$7=$A37,0,AD37=TRUE,O$9,AD37=FALSE,0) -> 0 | P37: =_xlfn.IFS($Y$7=$A37,0,AE37=TRUE,P$9,AE37=FALSE,0) -> 0 | Q37: =_xlfn.IFS($Y$7=$A37,0,AF37=TRUE,Q$9,AF37=FALSE,0) -> 0 | R37: =_xlfn.IFS($Y$7=$A37,0,AG37=TRUE,R$9,AG37=FALSE,0) -> 0 | S37: 0 | T37: =IF('1 Current state of the building'!$F$14=('NCW Financieel'!A37-0),'NCW Financieel'!$T$9,0) -> 0 | U37: 0 | AA37: FALSE | AB37: FALSE | AC37: FALSE | AD37: FALSE | AE37: FALSE | AF37: FALSE
A38: 29 | B38: 0.5245221302 | C38: 0.436469732 | D38: 0 | E38: 0 | F38: 0 | G38: 0 | H38: 0 | I38: 0 | K38: 0 | L38: =_xlfn.IFS($Y$7=$A38,0,AA38=TRUE,L$9,AA38=FALSE,0) -> 0 | M38: =_xlfn.IFS($Y$7=$A38,0,AB38=TRUE,M$9,AB38=FALSE,0) -> 0 | N38: =_xlfn.IFS($Y$7=$A38,0,AC38=TRUE,N$9,AC38=FALSE,0) -> 0 | O38: =_xlfn.IFS($Y$7=$A38,0,AD38=TRUE,O$9,AD38=FALSE,0) -> 0 | P38: =_xlfn.IFS($Y$7=$A38,0,AE38=TRUE,P$9,AE38=FALSE,0) -> 0 | Q38: =_xlfn.IFS($Y$7=$A38,0,AF38=TRUE,Q$9,AF38=FALSE,0) -> 0 | R38: =_xlfn.IFS($Y$7=$A38,0,AG38=TRUE,R$9,AG38=FALSE,0) -> 0 | S38: 0 | T38: =IF('1 Current state of the building'!$F$14=('NCW Financieel'!A38-0),'NCW Financieel'!$T$9,0) -> 0 | U38: 0 | AA38: FALSE | AB38: FALSE | AC38: FALSE | AD38: FALSE | AE38: FALSE | AF38: FALSE
A39: 30 | B39: 0.5129800784 | C39: 0.4241688357 | D39: 0 | E39: 0 | F39: 0 | G39: 0 | H39: 0 | I39: 0 | K39: 0 | L39: =_xlfn.IFS($Y$7=$A39,0,AA39=TRUE,L$9,AA39=FALSE,0) -> 0 | M39: =_xlfn.IFS($Y$7=$A39,0,AB39=TRUE,M$9,AB39=FALSE,0) -> 0 | N39: =_xlfn.IFS($Y$7=$A39,0,AC39=TRUE,N$9,AC39=FALSE,0) -> 0 | O39: =_xlfn.IFS($Y$7=$A39,0,AD39=TRUE,O$9,AD39=FALSE,0) -> 0 | P39: =_xlfn.IFS($Y$7=$A39,0,AE39=TRUE,P$9,AE39=FALSE,0) -> 0 | Q39: =_xlfn.IFS($Y$7=$A39,0,AF39=TRUE,Q$9,AF39=FALSE,0) -> 0 | R39: =_xlfn.IFS($Y$7=$A39,0,AG39=TRUE,R$9,AG39=FALSE,0) -> 0 | S39: 0 | T39: =IF('1 Current state of the building'!$F$14=('NCW Financieel'!A39-0),'NCW Financieel'!$T$9,0) -> 0 | U39: 0 | AA39: FALSE | AB39: TRUE | AC39: FALSE | AD39: TRUE | AE39: TRUE | AF39: TRUE
A40: 31 | B40: 0.5016920082 | C40: 0.412214612 | D40: 0 | E40: 0 | F40: 0 | G40: 0 | H40: 0 | I40: 0 | K40: 0 | L40: =_xlfn.IFS($Y$7=$A40,0,AA40=TRUE,L$9,AA40=FALSE,0) -> 0 | M40: =_xlfn.IFS($Y$7=$A40,0,AB40=TRUE,M$9,AB40=FALSE,0) -> 0 | N40: =_xlfn.IFS($Y$7=$A40,0,AC40=TRUE,N$9,AC40=FALSE,0) -> 0 | O40: =_xlfn.IFS($Y$7=$A40,0,AD40=TRUE,O$9,AD40=FALSE,0) -> 0 | P40: =_xlfn.IFS($Y$7=$A40,0,AE40=TRUE,P$9,AE40=FALSE,0) -> 0 | Q40: =_xlfn.IFS($Y$7=$A40,0,AF40=TRUE,Q$9,AF40=FALSE,0) -> 0 | R40: =_xlfn.IFS($Y$7=$A40,0,AG40=TRUE,R$9,AG40=FALSE,0) -> 0 | S40: 0 | T40: =IF('1 Current state of the building'!$F$14=('NCW Financieel'!A40-0),'NCW Financieel'!$T$9,0) -> 0 | U40: 0 | AA40: FALSE | AB40: FALSE | AC40: FALSE | AD40: FALSE | AE40: FALSE | AF40: FALSE
A41: 32 | B41: 0.4906523308 | C41: 0.4005972905 | D41: 0 | E41: 0 | F41: 0 | G41: 0 | H41: 0 | I41: 0 | K41: 0 | L41: =_xlfn.IFS($Y$7=$A41,0,AA41=TRUE,L$9,AA41=FALSE,0) -> 0 | M41: =_xlfn.IFS($Y$7=$A41,0,AB41=TRUE,M$9,AB41=FALSE,0) -> 0 | N41: =_xlfn.IFS($Y$7=$A41,0,AC41=TRUE,N$9,AC41=FALSE,0) -> 0 | O41: =_xlfn.IFS($Y$7=$A41,0,AD41=TRUE,O$9,AD41=FALSE,0) -> 0 | P41: =_xlfn.IFS($Y$7=$A41,0,AE41=TRUE,P$9,AE41=FALSE,0) -> 0 | Q41: =_xlfn.IFS($Y$7=$A41,0,AF41=TRUE,Q$9,AF41=FALSE,0) -> 0 | R41: =_xlfn.IFS($Y$7=$A41,0,AG41=TRUE,R$9,AG41=FALSE,0) -> 0 | S41: 0 | T41: =IF('1 Current state of the building'!$F$14=('NCW Financieel'!A41-0),'NCW Financieel'!$T$9,0) -> 0 | U41: 0 | AA41: FALSE | AB41: FALSE | AC41: FALSE | AD41: FALSE | AE41: FALSE | AF41: FALSE
A42: 33 | B42: =1/(1+$B$9)^A42 -> 0.4798555802 | C42: 0.3893073766 | D42: 0 | E42: 0 | F42: 0 | G42: 0 | H42: 0 | I42: 0 | K42: =SUM(S42:U42) -> 0 | L42: =_xlfn.IFS($Y$7=$A42,0,AA42=TRUE,L$9,AA42=FALSE,0) -> 0 | M42: =_xlfn.IFS($Y$7=$A42,0,AB42=TRUE,M$9,AB42=FALSE,0) -> 0 | N42: =_xlfn.IFS($Y$7=$A42,0,AC42=TRUE,N$9,AC42=FALSE,0) -> 0 | O42: =_xlfn.IFS($Y$7=$A42,0,AD42=TRUE,O$9,AD42=FALSE,0) -> 0 | P42: =_xlfn.IFS($Y$7=$A42,0,AE42=TRUE,P$9,AE42=FALSE,0) -> 0 | Q42: =_xlfn.IFS($Y$7=$A42,0,AF42=TRUE,Q$9,AF42=FALSE,0) -> 0 | R42: =_xlfn.IFS($Y$7=$A42,0,AG42=TRUE,R$9,AG42=FALSE,0) -> 0 | S42: 0 | T42: =IF('1 Current state of the building'!$F$14=('NCW Financieel'!A42-0),'NCW Financieel'!$T$9,0) -> 0 | U42: 0 | AA42: FALSE | AB42: FALSE | AC42: FALSE | AD42: FALSE | AE42: FALSE | AF42: FALSE
A43: 34 | B43: 0.469296411 | C43: 0.378335643 | D43: 0 | E43: 0 | F43: 0 | G43: 0 | H43: 0 | I43: 0 | K43: 0 | L43: =_xlfn.IFS($Y$7=$A43,0,AA43=TRUE,L$9,AA43=FALSE,0) -> 0 | M43: =_xlfn.IFS($Y$7=$A43,0,AB43=TRUE,M$9,AB43=FALSE,0) -> 0 | N43: =_xlfn.IFS($Y$7=$A43,0,AC43=TRUE,N$9,AC43=FALSE,0) -> 0 | O43: =_xlfn.IFS($Y$7=$A43,0,AD43=TRUE,O$9,AD43=FALSE,0) -> 0 | P43: =_xlfn.IFS($Y$7=$A43,0,AE43=TRUE,P$9,AE43=FALSE,0) -> 0 | Q43: =_xlfn.IFS($Y$7=$A43,0,AF43=TRUE,Q$9,AF43=FALSE,0) -> 0 | R43: =_xlfn.IFS($Y$7=$A43,0,AG43=TRUE,R$9,AG43=FALSE,0) -> 0 | S43: 0 | T43: =IF('1 Current state of the building'!$F$14=('NCW Financieel'!A43-0),'NCW Financieel'!$T$9,0) -> 0 | U43: 0 | AA43: FALSE | AB43: FALSE | AC43: FALSE | AD43: FALSE | AE43: FALSE | AF43: FALSE
A44: 35 | B44: 0.4589695951 | C44: 0.3676731224 | D44: 0 | E44: 0 | F44: 0 | G44: 0 | H44: 0 | I44: 0 | K44: 0 | L44: =_xlfn.IFS($Y$7=$A44,0,AA44=TRUE,L$9,AA44=FALSE,0) -> 0 | M44: =_xlfn.IFS($Y$7=$A44,0,AB44=TRUE,M$9,AB44=FALSE,0) -> 0 | N44: =_xlfn.IFS($Y$7=$A44,0,AC44=TRUE,N$9,AC44=FALSE,0) -> 0 | O44: =_xlfn.IFS($Y$7=$A44,0,AD44=TRUE,O$9,AD44=FALSE,0) -> 0 | P44: =_xlfn.IFS($Y$7=$A44,0,AE44=TRUE,P$9,AE44=FALSE,0) -> 0 | Q44: =_xlfn.IFS($Y$7=$A44,0,AF44=TRUE,Q$9,AF44=FALSE,0) -> 0 | R44: =_xlfn.IFS($Y$7=$A44,0,AG44=TRUE,R$9,AG44=FALSE,0) -> 0 | S44: 0 | T44: =IF('1 Current state of the building'!$F$14=('NCW Financieel'!A44-0),'NCW Financieel'!$T$9,0) -> 0 | U44: 0 | AA44: FALSE | AB44: FALSE | AC44: FALSE | AD44: FALSE | AE44: FALSE | AF44: FALSE
A45: 36 | B45: 0.4488700197 | C45: 0.3573111005 | D45: 0 | E45: 0 | F45: 0 | G45: 0 | H45: 0 | I45: 0 | K45: 0 | L45: =_xlfn.IFS($Y$7=$A45,0,AA45=TRUE,L$9,AA45=FALSE,0) -> 0 | M45: =_xlfn.IFS($Y$7=$A45,0,AB45=TRUE,M$9,AB45=FALSE,0) -> 0 | N45: =_xlfn.IFS($Y$7=$A45,0,AC45=TRUE,N$9,AC45=FALSE,0) -> 0 | O45: =_xlfn.IFS($Y$7=$A45,0,AD45=TRUE,O$9,AD45=FALSE,0) -> 0 | P45: =_xlfn.IFS($Y$7=$A45,0,AE45=TRUE,P$9,AE45=FALSE,0) -> 0 | Q45: =_xlfn.IFS($Y$7=$A45,0,AF45=TRUE,Q$9,AF45=FALSE,0) -> 0 | R45: =_xlfn.IFS($Y$7=$A45,0,AG45=TRUE,R$9,AG45=FALSE,0) -> 0 | S45: 0 | T45: =IF('1 Current state of the building'!$F$14=('NCW Financieel'!A45-0),'NCW Financieel'!$T$9,0) -> 0 | U45: 0 | AA45: FALSE | AB45: FALSE | AC45: FALSE | AD45: FALSE | AE45: FALSE | AF45: FALSE
A46: 37 | B46: 0.4389926843 | C46: 0.3472411084 | D46: 0 | E46: 0 | F46: 0 | G46: 0 | H46: 0 | I46: 0 | K46: 0 | L46: =_xlfn.IFS($Y$7=$A46,0,AA46=TRUE,L$9,AA46=FALSE,0) -> 0 | M46: =_xlfn.IFS($Y$7=$A46,0,AB46=TRUE,M$9,AB46=FALSE,0) -> 0 | N46: =_xlfn.IFS($Y$7=$A46,0,AC46=TRUE,N$9,AC46=FALSE,0) -> 0 | O46: =_xlfn.IFS($Y$7=$A46,0,AD46=TRUE,O$9,AD46=FALSE,0) -> 0 | P46: =_xlfn.IFS($Y$7=$A46,0,AE46=TRUE,P$9,AE46=FALSE,0) -> 0 | Q46: =_xlfn.IFS($Y$7=$A46,0,AF46=TRUE,Q$9,AF46=FALSE,0) -> 0 | R46: =_xlfn.IFS($Y$7=$A46,0,AG46=TRUE,R$9,AG46=FALSE,0) -> 0 | S46: 0 | T46: =IF('1 Current state of the building'!$F$14=('NCW Financieel'!A46-0),'NCW Financieel'!$T$9,0) -> 0 | U46: 0 | AA46: FALSE | AB46: FALSE | AC46: FALSE | AD46: FALSE | AE46: FALSE | AF46: FALSE
A47: 38 | B47: 0.4293326985 | C47: 0.3374549158 | D47: 0 | E47: 0 | F47: 0 | G47: 0 | H47: 0 | I47: 0 | K47: 0 | L47: =_xlfn.IFS($Y$7=$A47,0,AA47=TRUE,L$9,AA47=FALSE,0) -> 0 | M47: =_xlfn.IFS($Y$7=$A47,0,AB47=TRUE,M$9,AB47=FALSE,0) -> 0 | N47: =_xlfn.IFS($Y$7=$A47,0,AC47=TRUE,N$9,AC47=FALSE,0) -> 0 | O47: =_xlfn.IFS($Y$7=$A47,0,AD47=TRUE,O$9,AD47=FALSE,0) -> 0 | P47: =_xlfn.IFS($Y$7=$A47,0,AE47=TRUE,P$9,AE47=FALSE,0) -> 0 | Q47: =_xlfn.IFS($Y$7=$A47,0,AF47=TRUE,Q$9,AF47=FALSE,0) -> 0 | R47: =_xlfn.IFS($Y$7=$A47,0,AG47=TRUE,R$9,AG47=FALSE,0) -> 0 | S47: 0 | T47: =IF('1 Current state of the building'!$F$14=('NCW Financieel'!A47-0),'NCW Financieel'!$T$9,0) -> 0 | U47: 0 | AA47: FALSE | AB47: FALSE | AC47: FALSE | AD47: FALSE | AE47: FALSE | AF47: FALSE
A48: 39 | B48: 0.4198852798 | C48: 0.3279445246 | D48: 0 | E48: 0 | F48: 0 | G48: 0 | H48: 0 | I48: 0 | K48: 0 | L48: =_xlfn.IFS($Y$7=$A48,0,AA48=TRUE,L$9,AA48=FALSE,0) -> 0 | M48: =_xlfn.IFS($Y$7=$A48,0,AB48=TRUE,M$9,AB48=FALSE,0) -> 0 | N48: =_xlfn.IFS($Y$7=$A48,0,AC48=TRUE,N$9,AC48=FALSE,0) -> 0 | O48: =_xlfn.IFS($Y$7=$A48,0,AD48=TRUE,O$9,AD48=FALSE,0) -> 0 | P48: =_xlfn.IFS($Y$7=$A48,0,AE48=TRUE,P$9,AE48=FALSE,0) -> 0 | Q48: =_xlfn.IFS($Y$7=$A48,0,AF48=TRUE,Q$9,AF48=FALSE,0) -> 0 | R48: =_xlfn.IFS($Y$7=$A48,0,AG48=TRUE,R$9,AG48=FALSE,0) -> 0 | S48: 0 | T48: =IF('1 Current state of the building'!$F$14=('NCW Financieel'!A48-0),'NCW Financieel'!$T$9,0) -> 0 | U48: 0 | AA48: FALSE | AB48: FALSE | AC48: FALSE | AD48: FALSE | AE48: FALSE | AF48: FALSE
A49: 40 | B49: 0.4106457504 | C49: 0.3187021619 | D49: 0 | E49: 0 | F49: 0 | G49: 0 | H49: 0 | I49: 0 | K49: 0 | L49: =_xlfn.IFS($Y$7=$A49,0,AA49=TRUE,L$9,AA49=FALSE,0) -> 0 | M49: =_xlfn.IFS($Y$7=$A49,0,AB49=TRUE,M$9,AB49=FALSE,0) -> 0 | N49: =_xlfn.IFS($Y$7=$A49,0,AC49=TRUE,N$9,AC49=FALSE,0) -> 0 | O49: =_xlfn.IFS($Y$7=$A49,0,AD49=TRUE,O$9,AD49=FALSE,0) -> 0 | P49: =_xlfn.IFS($Y$7=$A49,0,AE49=TRUE,P$9,AE49=FALSE,0) -> 0 | Q49: =_xlfn.IFS($Y$7=$A49,0,AF49=TRUE,Q$9,AF49=FALSE,0) -> 0 | R49: =_xlfn.IFS($Y$7=$A49,0,AG49=TRUE,R$9,AG49=FALSE,0) -> 0 | S49: 0 | T49: =IF('1 Current state of the building'!$F$14=('NCW Financieel'!A49-0),'NCW Financieel'!$T$9,0) -> 0 | U49: 0 | AA49: FALSE | AB49: FALSE | AC49: FALSE | AD49: FALSE | AE49: FALSE | AF49: FALSE
A50: 41 | B50: 0.4016095358 | C50: 0.309720274 | D50: =E50-K50 -> 0 | E50: =SUM(F50:I50) -> 0 | F50: 0 | G50: 0 | H50: 0 | I50: 0 | K50: 0 | L50: =_xlfn.IFS($Y$7=$A50,0,AA50=TRUE,L$9,AA50=FALSE,0) -> 0 | M50: =_xlfn.IFS($Y$7=$A50,0,AB50=TRUE,M$9,AB50=FALSE,0) -> 0 | N50: =_xlfn.IFS($Y$7=$A50,0,AC50=TRUE,N$9,AC50=FALSE,0) -> 0 | O50: =_xlfn.IFS($Y$7=$A50,0,AD50=TRUE,O$9,AD50=FALSE,0) -> 0 | P50: =_xlfn.IFS($Y$7=$A50,0,AE50=TRUE,P$9,AE50=FALSE,0) -> 0 | Q50: =_xlfn.IFS($Y$7=$A50,0,AF50=TRUE,Q$9,AF50=FALSE,0) -> 0 | R50: =_xlfn.IFS($Y$7=$A50,0,AG50=TRUE,R$9,AG50=FALSE,0) -> 0 | S50: =SUM(L50:R50) -> 0 | T50: =IF('1 Current state of the building'!$F$14=('NCW Financieel'!A50-0),'NCW Financieel'!$T$9,0) -> 0 | U50: 0
A51: 42 | B51: 0.3927721622 | C51: 0.3009915199 | D51: 0 | E51: 0 | F51: 0 | G51: 0 | H51: 0 | I51: 0 | K51: 0 | L51: =_xlfn.IFS($Y$7=$A51,0,AA51=TRUE,L$9,AA51=FALSE,0) -> 0 | M51: =_xlfn.IFS($Y$7=$A51,0,AB51=TRUE,M$9,AB51=FALSE,0) -> 0 | N51: =_xlfn.IFS($Y$7=$A51,0,AC51=TRUE,N$9,AC51=FALSE,0) -> 0 | O51: =_xlfn.IFS($Y$7=$A51,0,AD51=TRUE,O$9,AD51=FALSE,0) -> 0 | P51: =_xlfn.IFS($Y$7=$A51,0,AE51=TRUE,P$9,AE51=FALSE,0) -> 0 | Q51: =_xlfn.IFS($Y$7=$A51,0,AF51=TRUE,Q$9,AF51=FALSE,0) -> 0 | R51: =_xlfn.IFS($Y$7=$A51,0,AG51=TRUE,R$9,AG51=FALSE,0) -> 0 | S51: 0 | T51: =IF('1 Current state of the building'!$F$14=('NCW Financieel'!A51-0),'NCW Financieel'!$T$9,0) -> 0 | U51: 0
A52: 43 | B52: 0.384129254 | C52: 0.2925087657 | D52: 0 | E52: 0 | F52: 0 | G52: 0 | H52: 0 | I52: 0 | K52: 0 | L52: =_xlfn.IFS($Y$7=$A52,0,AA52=TRUE,L$9,AA52=FALSE,0) -> 0 | M52: =_xlfn.IFS($Y$7=$A52,0,AB52=TRUE,M$9,AB52=FALSE,0) -> 0 | N52: =_xlfn.IFS($Y$7=$A52,0,AC52=TRUE,N$9,AC52=FALSE,0) -> 0 | O52: =_xlfn.IFS($Y$7=$A52,0,AD52=TRUE,O$9,AD52=FALSE,0) -> 0 | P52: =_xlfn.IFS($Y$7=$A52,0,AE52=TRUE,P$9,AE52=FALSE,0) -> 0 | Q52: =_xlfn.IFS($Y$7=$A52,0,AF52=TRUE,Q$9,AF52=FALSE,0) -> 0 | R52: =_xlfn.IFS($Y$7=$A52,0,AG52=TRUE,R$9,AG52=FALSE,0) -> 0 | S52: 0 | T52: =IF('1 Current state of the building'!$F$14=('NCW Financieel'!A52-0),'NCW Financieel'!$T$9,0) -> 0 | U52: 0
A53: 44 | B53: 0.375676532 | C53: 0.2842650784 | D53: 0 | E53: 0 | F53: 0 | G53: 0 | H53: 0 | I53: 0 | K53: 0 | L53: =_xlfn.IFS($Y$7=$A53,0,AA53=TRUE,L$9,AA53=FALSE,0) -> 0 | M53: =_xlfn.IFS($Y$7=$A53,0,AB53=TRUE,M$9,AB53=FALSE,0) -> 0 | N53: =_xlfn.IFS($Y$7=$A53,0,AC53=TRUE,N$9,AC53=FALSE,0) -> 0 | O53: =_xlfn.IFS($Y$7=$A53,0,AD53=TRUE,O$9,AD53=FALSE,0) -> 0 | P53: =_xlfn.IFS($Y$7=$A53,0,AE53=TRUE,P$9,AE53=FALSE,0) -> 0 | Q53: =_xlfn.IFS($Y$7=$A53,0,AF53=TRUE,Q$9,AF53=FALSE,0) -> 0 | R53: =_xlfn.IFS($Y$7=$A53,0,AG53=TRUE,R$9,AG53=FALSE,0) -> 0 | S53: 0 | T53: =IF('1 Current state of the building'!$F$14=('NCW Financieel'!A53-0),'NCW Financieel'!$T$9,0) -> 0 | U53: 0
A54: 45 | B54: 0.3674098112 | C54: 0.2762537205 | D54: 0 | E54: 0 | F54: 0 | G54: 0 | H54: 0 | I54: 0 | K54: 0 | L54: =_xlfn.IFS($Y$7=$A54,0,AA54=TRUE,L$9,AA54=FALSE,0) -> 0 | M54: =_xlfn.IFS($Y$7=$A54,0,AB54=TRUE,M$9,AB54=FALSE,0) -> 0 | N54: =_xlfn.IFS($Y$7=$A54,0,AC54=TRUE,N$9,AC54=FALSE,0) -> 0 | O54: =_xlfn.IFS($Y$7=$A54,0,AD54=TRUE,O$9,AD54=FALSE,0) -> 0 | P54: =_xlfn.IFS($Y$7=$A54,0,AE54=TRUE,P$9,AE54=FALSE,0) -> 0 | Q54: =_xlfn.IFS($Y$7=$A54,0,AF54=TRUE,Q$9,AF54=FALSE,0) -> 0 | R54: =_xlfn.IFS($Y$7=$A54,0,AG54=TRUE,R$9,AG54=FALSE,0) -> 0 | S54: 0 | T54: =IF('1 Current state of the building'!$F$14=('NCW Financieel'!A54-0),'NCW Financieel'!$T$9,0) -> 0 | U54: 0
A55: 46 | B55: 0.3593249988 | C55: 0.2684681443 | D55: 0 | E55: 0 | F55: 0 | G55: 0 | H55: 0 | I55: 0 | K55: 0 | L55: =_xlfn.IFS($Y$7=$A55,0,AA55=TRUE,L$9,AA55=FALSE,0) -> 0 | M55: =_xlfn.IFS($Y$7=$A55,0,AB55=TRUE,M$9,AB55=FALSE,0) -> 0 | N55: =_xlfn.IFS($Y$7=$A55,0,AC55=TRUE,N$9,AC55=FALSE,0) -> 0 | O55: =_xlfn.IFS($Y$7=$A55,0,AD55=TRUE,O$9,AD55=FALSE,0) -> 0 | P55: =_xlfn.IFS($Y$7=$A55,0,AE55=TRUE,P$9,AE55=FALSE,0) -> 0 | Q55: =_xlfn.IFS($Y$7=$A55,0,AF55=TRUE,Q$9,AF55=FALSE,0) -> 0 | R55: =_xlfn.IFS($Y$7=$A55,0,AG55=TRUE,R$9,AG55=FALSE,0) -> 0 | S55: 0 | T55: =IF('1 Current state of the building'!$F$14=('NCW Financieel'!A55-0),'NCW Financieel'!$T$9,0) -> 0 | U55: 0
A56: 47 | B56: 0.3514180917 | C56: 0.2609019867 | D56: 0 | E56: 0 | F56: 0 | G56: 0 | H56: 0 | I56: 0 | K56: 0 | L56: =_xlfn.IFS($Y$7=$A56,0,AA56=TRUE,L$9,AA56=FALSE,0) -> 0 | M56: =_xlfn.IFS($Y$7=$A56,0,AB56=TRUE,M$9,AB56=FALSE,0) -> 0 | N56: =_xlfn.IFS($Y$7=$A56,0,AC56=TRUE,N$9,AC56=FALSE,0) -> 0 | O56: =_xlfn.IFS($Y$7=$A56,0,AD56=TRUE,O$9,AD56=FALSE,0) -> 0 | P56: =_xlfn.IFS($Y$7=$A56,0,AE56=TRUE,P$9,AE56=FALSE,0) -> 0 | Q56: =_xlfn.IFS($Y$7=$A56,0,AF56=TRUE,Q$9,AF56=FALSE,0) -> 0 | R56: =_xlfn.IFS($Y$7=$A56,0,AG56=TRUE,R$9,AG56=FALSE,0) -> 0 | S56: 0 | T56: =IF('1 Current state of the building'!$F$14=('NCW Financieel'!A56-0),'NCW Financieel'!$T$9,0) -> 0 | U56: 0
A57: 48 | B57: 0.3436851753 | C57: 0.2535490639 | D57: 0 | E57: 0 | F57: 0 | G57: 0 | H57: 0 | I57: 0 | K57: 0 | L57: =_xlfn.IFS($Y$7=$A57,0,AA57=TRUE,L$9,AA57=FALSE,0) -> 0 | M57: =_xlfn.IFS($Y$7=$A57,0,AB57=TRUE,M$9,AB57=FALSE,0) -> 0 | N57: =_xlfn.IFS($Y$7=$A57,0,AC57=TRUE,N$9,AC57=FALSE,0) -> 0 | O57: =_xlfn.IFS($Y$7=$A57,0,AD57=TRUE,O$9,AD57=FALSE,0) -> 0 | P57: =_xlfn.IFS($Y$7=$A57,0,AE57=TRUE,P$9,AE57=FALSE,0) -> 0 | Q57: =_xlfn.IFS($Y$7=$A57,0,AF57=TRUE,Q$9,AF57=FALSE,0) -> 0 | R57: =_xlfn.IFS($Y$7=$A57,0,AG57=TRUE,R$9,AG57=FALSE,0) -> 0 | S57: 0 | T57: =IF('1 Current state of the building'!$F$14=('NCW Financieel'!A57-0),'NCW Financieel'!$T$9,0) -> 0 | U57: 0
A58: 49 | B58: 0.3361224208 | C58: 0.2464033662 | D58: 0 | E58: 0 | F58: 0 | G58: 0 | H58: 0 | I58: 0 | K58: 0 | L58: =_xlfn.IFS($Y$7=$A58,0,AA58=TRUE,L$9,AA58=FALSE,0) -> 0 | M58: =_xlfn.IFS($Y$7=$A58,0,AB58=TRUE,M$9,AB58=FALSE,0) -> 0 | N58: =_xlfn.IFS($Y$7=$A58,0,AC58=TRUE,N$9,AC58=FALSE,0) -> 0 | O58: =_xlfn.IFS($Y$7=$A58,0,AD58=TRUE,O$9,AD58=FALSE,0) -> 0 | P58: =_xlfn.IFS($Y$7=$A58,0,AE58=TRUE,P$9,AE58=FALSE,0) -> 0 | Q58: =_xlfn.IFS($Y$7=$A58,0,AF58=TRUE,Q$9,AF58=FALSE,0) -> 0 | R58: =_xlfn.IFS($Y$7=$A58,0,AG58=TRUE,R$9,AG58=FALSE,0) -> 0 | S58: 0 | T58: =IF('1 Current state of the building'!$F$14=('NCW Financieel'!A58-0),'NCW Financieel'!$T$9,0) -> 0 | U58: 0
A59: 50 | B59: 0.3287260839 | C59: 0.2394590537 | D59: 0 | E59: 0 | F59: 0 | G59: 0 | H59: 0 | I59: 0 | K59: 0 | L59: =_xlfn.IFS($Y$7=$A59,0,AA59=TRUE,L$9,AA59=FALSE,0) -> 0 | M59: =_xlfn.IFS($Y$7=$A59,0,AB59=TRUE,M$9,AB59=FALSE,0) -> 0 | N59: =_xlfn.IFS($Y$7=$A59,0,AC59=TRUE,N$9,AC59=FALSE,0) -> 0 | O59: =_xlfn.IFS($Y$7=$A59,0,AD59=TRUE,O$9,AD59=FALSE,0) -> 0 | P59: =_xlfn.IFS($Y$7=$A59,0,AE59=TRUE,P$9,AE59=FALSE,0) -> 0 | Q59: =_xlfn.IFS($Y$7=$A59,0,AF59=TRUE,Q$9,AF59=FALSE,0) -> 0 | R59: =_xlfn.IFS($Y$7=$A59,0,AG59=TRUE,R$9,AG59=FALSE,0) -> 0 | S59: 0 | T59: =IF('1 Current state of the building'!$F$14=('NCW Financieel'!A59-0),'NCW Financieel'!$T$9,0) -> 0 | U59: 0
A60: 51 | B60: 0.3214925026 | C60: 0.2327104506 | D60: 0 | E60: 0 | F60: 0 | G60: 0 | H60: 0 | I60: 0 | K60: 0 | L60: =_xlfn.IFS($Y$7=$A60,0,AA60=TRUE,L$9,AA60=FALSE,0) -> 0 | M60: =_xlfn.IFS($Y$7=$A60,0,AB60=TRUE,M$9,AB60=FALSE,0) -> 0 | N60: =_xlfn.IFS($Y$7=$A60,0,AC60=TRUE,N$9,AC60=FALSE,0) -> 0 | O60: =_xlfn.IFS($Y$7=$A60,0,AD60=TRUE,O$9,AD60=FALSE,0) -> 0 | P60: =_xlfn.IFS($Y$7=$A60,0,AE60=TRUE,P$9,AE60=FALSE,0) -> 0 | Q60: =_xlfn.IFS($Y$7=$A60,0,AF60=TRUE,Q$9,AF60=FALSE,0) -> 0 | R60: =_xlfn.IFS($Y$7=$A60,0,AG60=TRUE,R$9,AG60=FALSE,0) -> 0 | S60: 0 | T60: =IF('1 Current state of the building'!$F$14=('NCW Financieel'!A60-0),'NCW Financieel'!$T$9,0) -> 0 | U60: 0
A61: 52 | B61: 0.3144180954 | C61: 0.2261520414 | D61: 0 | E61: 0 | F61: 0 | G61: 0 | H61: 0 | I61: 0 | K61: 0 | L61: =_xlfn.IFS($Y$7=$A61,0,AA61=TRUE,L$9,AA61=FALSE,0) -> 0 | M61: =_xlfn.IFS($Y$7=$A61,0,AB61=TRUE,M$9,AB61=FALSE,0) -> 0 | N61: =_xlfn.IFS($Y$7=$A61,0,AC61=TRUE,N$9,AC61=FALSE,0) -> 0 | O61: =_xlfn.IFS($Y$7=$A61,0,AD61=TRUE,O$9,AD61=FALSE,0) -> 0 | P61: =_xlfn.IFS($Y$7=$A61,0,AE61=TRUE,P$9,AE61=FALSE,0) -> 0 | Q61: =_xlfn.IFS($Y$7=$A61,0,AF61=TRUE,Q$9,AF61=FALSE,0) -> 0 | R61: =_xlfn.IFS($Y$7=$A61,0,AG61=TRUE,R$9,AG61=FALSE,0) -> 0 | S61: 0 | T61: =IF('1 Current state of the building'!$F$14=('NCW Financieel'!A61-0),'NCW Financieel'!$T$9,0) -> 0 | U61: 0
A62: 53 | B62: 0.3074993598 | C62: 0.2197784659 | D62: 0 | E62: 0 | F62: 0 | G62: 0 | H62: 0 | I62: 0 | K62: 0 | L62: =_xlfn.IFS($Y$7=$A62,0,AA62=TRUE,L$9,AA62=FALSE,0) -> 0 | M62: =_xlfn.IFS($Y$7=$A62,0,AB62=TRUE,M$9,AB62=FALSE,0) -> 0 | N62: =_xlfn.IFS($Y$7=$A62,0,AC62=TRUE,N$9,AC62=FALSE,0) -> 0 | O62: =_xlfn.IFS($Y$7=$A62,0,AD62=TRUE,O$9,AD62=FALSE,0) -> 0 | P62: =_xlfn.IFS($Y$7=$A62,0,AE62=TRUE,P$9,AE62=FALSE,0) -> 0 | Q62: =_xlfn.IFS($Y$7=$A62,0,AF62=TRUE,Q$9,AF62=FALSE,0) -> 0 | R62: =_xlfn.IFS($Y$7=$A62,0,AG62=TRUE,R$9,AG62=FALSE,0) -> 0 | S62: 0 | T62: =IF('1 Current state of the building'!$F$14=('NCW Financieel'!A62-0),'NCW Financieel'!$T$9,0) -> 0 | U62: 0
A63: 54 | B63: 0.3007328703 | C63: 0.213584515 | D63: 0 | E63: 0 | F63: 0 | G63: 0 | H63: 0 | I63: 0 | K63: 0 | L63: =_xlfn.IFS($Y$7=$A63,0,AA63=TRUE,L$9,AA63=FALSE,0) -> 0 | M63: =_xlfn.IFS($Y$7=$A63,0,AB63=TRUE,M$9,AB63=FALSE,0) -> 0 | N63: =_xlfn.IFS($Y$7=$A63,0,AC63=TRUE,N$9,AC63=FALSE,0) -> 0 | O63: =_xlfn.IFS($Y$7=$A63,0,AD63=TRUE,O$9,AD63=FALSE,0) -> 0 | P63: =_xlfn.IFS($Y$7=$A63,0,AE63=TRUE,P$9,AE63=FALSE,0) -> 0 | Q63: =_xlfn.IFS($Y$7=$A63,0,AF63=TRUE,Q$9,AF63=FALSE,0) -> 0 | R63: =_xlfn.IFS($Y$7=$A63,0,AG63=TRUE,R$9,AG63=FALSE,0) -> 0 | S63: 0 | T63: =IF('1 Current state of the building'!$F$14=('NCW Financieel'!A63-0),'NCW Financieel'!$T$9,0) -> 0 | U63: 0
A64: 55 | B64: 0.2941152765 | C64: 0.2075651263 | D64: 0 | E64: 0 | F64: 0 | G64: 0 | H64: 0 | I64: 0 | K64: 0 | L64: =_xlfn.IFS($Y$7=$A64,0,AA64=TRUE,L$9,AA64=FALSE,0) -> 0 | M64: =_xlfn.IFS($Y$7=$A64,0,AB64=TRUE,M$9,AB64=FALSE,0) -> 0 | N64: =_xlfn.IFS($Y$7=$A64,0,AC64=TRUE,N$9,AC64=FALSE,0) -> 0 | O64: =_xlfn.IFS($Y$7=$A64,0,AD64=TRUE,O$9,AD64=FALSE,0) -> 0 | P64: =_xlfn.IFS($Y$7=$A64,0,AE64=TRUE,P$9,AE64=FALSE,0) -> 0 | Q64: =_xlfn.IFS($Y$7=$A64,0,AF64=TRUE,Q$9,AF64=FALSE,0) -> 0 | R64: =_xlfn.IFS($Y$7=$A64,0,AG64=TRUE,R$9,AG64=FALSE,0) -> 0 | S64: 0 | T64: =IF('1 Current state of the building'!$F$14=('NCW Financieel'!A64-0),'NCW Financieel'!$T$9,0) -> 0 | U64: 0
A65: 56 | B65: 0.2876433022 | C65: 0.2017153803 | D65: 0 | E65: 0 | F65: 0 | G65: 0 | H65: 0 | I65: 0 | K65: 0 | L65: =_xlfn.IFS($Y$7=$A65,0,AA65=TRUE,L$9,AA65=FALSE,0) -> 0 | M65: =_xlfn.IFS($Y$7=$A65,0,AB65=TRUE,M$9,AB65=FALSE,0) -> 0 | N65: =_xlfn.IFS($Y$7=$A65,0,AC65=TRUE,N$9,AC65=FALSE,0) -> 0 | O65: =_xlfn.IFS($Y$7=$A65,0,AD65=TRUE,O$9,AD65=FALSE,0) -> 0 | P65: =_xlfn.IFS($Y$7=$A65,0,AE65=TRUE,P$9,AE65=FALSE,0) -> 0 | Q65: =_xlfn.IFS($Y$7=$A65,0,AF65=TRUE,Q$9,AF65=FALSE,0) -> 0 | R65: =_xlfn.IFS($Y$7=$A65,0,AG65=TRUE,R$9,AG65=FALSE,0) -> 0 | S65: 0 | T65: =IF('1 Current state of the building'!$F$14=('NCW Financieel'!A65-0),'NCW Financieel'!$T$9,0) -> 0 | U65: 0
A66: 57 | B66: 0.281313743 | C66: 0.1960304959 | D66: 0 | E66: 0 | F66: 0 | G66: 0 | H66: 0 | I66: 0 | K66: 0 | L66: =_xlfn.IFS($Y$7=$A66,0,AA66=TRUE,L$9,AA66=FALSE,0) -> 0 | M66: =_xlfn.IFS($Y$7=$A66,0,AB66=TRUE,M$9,AB66=FALSE,0) -> 0 | N66: =_xlfn.IFS($Y$7=$A66,0,AC66=TRUE,N$9,AC66=FALSE,0) -> 0 | O66: =_xlfn.IFS($Y$7=$A66,0,AD66=TRUE,O$9,AD66=FALSE,0) -> 0 | P66: =_xlfn.IFS($Y$7=$A66,0,AE66=TRUE,P$9,AE66=FALSE,0) -> 0 | Q66: =_xlfn.IFS($Y$7=$A66,0,AF66=TRUE,Q$9,AF66=FALSE,0) -> 0 | R66: =_xlfn.IFS($Y$7=$A66,0,AG66=TRUE,R$9,AG66=FALSE,0) -> 0 | S66: 0 | T66: =IF('1 Current state of the building'!$F$14=('NCW Financieel'!A66-0),'NCW Financieel'!$T$9,0) -> 0 | U66: 0
A67: 58 | B67: 0.2751234651 | C67: 0.1905058269 | D67: 0 | E67: 0 | F67: 0 | G67: 0 | H67: 0 | I67: 0 | K67: 0 | L67: =_xlfn.IFS($Y$7=$A67,0,AA67=TRUE,L$9,AA67=FALSE,0) -> 0 | M67: =_xlfn.IFS($Y$7=$A67,0,AB67=TRUE,M$9,AB67=FALSE,0) -> 0 | N67: =_xlfn.IFS($Y$7=$A67,0,AC67=TRUE,N$9,AC67=FALSE,0) -> 0 | O67: =_xlfn.IFS($Y$7=$A67,0,AD67=TRUE,O$9,AD67=FALSE,0) -> 0 | P67: =_xlfn.IFS($Y$7=$A67,0,AE67=TRUE,P$9,AE67=FALSE,0) -> 0 | Q67: =_xlfn.IFS($Y$7=$A67,0,AF67=TRUE,Q$9,AF67=FALSE,0) -> 0 | R67: =_xlfn.IFS($Y$7=$A67,0,AG67=TRUE,R$9,AG67=FALSE,0) -> 0 | S67: 0 | T67: =IF('1 Current state of the building'!$F$14=('NCW Financieel'!A67-0),'NCW Financieel'!$T$9,0) -> 0 | U67: 0
A68: 59 | B68: 0.2690694035 | C68: 0.185136858 | D68: 0 | E68: 0 | F68: 0 | G68: 0 | H68: 0 | I68: 0 | K68: 0 | L68: =_xlfn.IFS($Y$7=$A68,0,AA68=TRUE,L$9,AA68=FALSE,0) -> 0 | M68: =_xlfn.IFS($Y$7=$A68,0,AB68=TRUE,M$9,AB68=FALSE,0) -> 0 | N68: =_xlfn.IFS($Y$7=$A68,0,AC68=TRUE,N$9,AC68=FALSE,0) -> 0 | O68: =_xlfn.IFS($Y$7=$A68,0,AD68=TRUE,O$9,AD68=FALSE,0) -> 0 | P68: =_xlfn.IFS($Y$7=$A68,0,AE68=TRUE,P$9,AE68=FALSE,0) -> 0 | Q68: =_xlfn.IFS($Y$7=$A68,0,AF68=TRUE,Q$9,AF68=FALSE,0) -> 0 | R68: =_xlfn.IFS($Y$7=$A68,0,AG68=TRUE,R$9,AG68=FALSE,0) -> 0 | S68: 0 | T68: =IF('1 Current state of the building'!$F$14=('NCW Financieel'!A68-0),'NCW Financieel'!$T$9,0) -> 0 | U68: 0
A69: 60 | B69: 0.2631485609 | C69: 0.1799192012 | D69: =E69-K69 -> 0 | E69: =SUM(F69:I69) -> 0 | F69: 0 | G69: 0 | H69: 0 | I69: 0 | K69: 0 | L69: =_xlfn.IFS($Y$7=$A69,0,AA69=TRUE,L$9,AA69=FALSE,0) -> 0 | M69: =_xlfn.IFS($Y$7=$A69,0,AB69=TRUE,M$9,AB69=FALSE,0) -> 0 | N69: =_xlfn.IFS($Y$7=$A69,0,AC69=TRUE,N$9,AC69=FALSE,0) -> 0 | O69: =_xlfn.IFS($Y$7=$A69,0,AD69=TRUE,O$9,AD69=FALSE,0) -> 0 | P69: =_xlfn.IFS($Y$7=$A69,0,AE69=TRUE,P$9,AE69=FALSE,0) -> 0 | Q69: =_xlfn.IFS($Y$7=$A69,0,AF69=TRUE,Q$9,AF69=FALSE,0) -> 0 | R69: =_xlfn.IFS($Y$7=$A69,0,AG69=TRUE,R$9,AG69=FALSE,0) -> 0 | S69: =SUM(L69:R69) -> 0 | T69: =IF('1 Current state of the building'!$F$14=('NCW Financieel'!A69-0),'NCW Financieel'!$T$9,0) -> 0 | U69: 0
E74: Subtotaal | F74: Netto opbrengsten exploitatie rood dak | G74: Energie opbrengsten teruglevering | H74: Energiebesparing verbruik | K74: Subtotaal | S74: Meerkosten t.o.v. referentiealternatief (incl. subsidies) | U74: Beheer- en onderhoud
E75: =E6 -> 0 | F75: =F6 -> 0 | G75: =G6 -> 0 | H75: =H6 -> 0 | I75: =I6 -> 0 | K75: =K7 -> 0 | S75: =S6 -> 0 | T75: =T9 -> 0 | U75: =U6 -> 0
D80: Kosten | E80: =K75 -> 0
D81: Opbrengsten | E81: =E75 -> 0
D82: Saldo | E82: =E81-E80 -> 0

Sheet NCW MKBA (hidden)
A2: NCW BEREKENING: MKBA
D5: TOTAAL | E5: BATEN | P5: KOSTEN
A6: Ncw per 1-1-2021 | D6: Totaal | E6: Subtotaal | F6: Waterretentie en -hergebruik (blauw dak) | G6: Energie-opbrengsten | H6: Vermeden CO2 uitstoot (geel dak) | I6: Vermeden uitstoot overig (geel dak) | J6: Waterretentie (groen dak) | K6: Fijnstof Afvang (groen dak) | L6: Vermeden zorgkosten (groen dak) | M6: Vermeden arbeidsverlies (groen dak) | N6: Vastgoedwaarde | O6: ='NCW Financieel'!F5 -> Opbrengsten exploitatie rood dak | P6: Subtotaal | Q6: ='NCW Financieel'!S5 -> Investeringskosten | R6: ='NCW Financieel'!T5 -> Investeringskosten regulier dak (negatief) | S6: Beheer- en onderhoud
D7: =SUM(D$10:INDEX(D$10:D$49,MATCH($V$15,$A$10:$A$49,0))) -> 0 | E7: =SUM(E$10:INDEX(E$10:E$69,MATCH($V$15,$A$10:$A$69,0))) -> 0 | F7: =NPV(B9,F$10:INDEX(F$10:F$69,MATCH($V$15,$A$10:$A$69,0))) -> 0 | G7: =NPV(B9,G$10:INDEX(G$10:G$69,MATCH($V$15,$A$10:$A$69,0))) -> 0 | H7: =NPV(C9,H$10:INDEX(H$10:H$69,MATCH($V$15,$A$10:$A$69,0))) -> 0 | I7: =NPV($B$9,I$10:INDEX(I$10:I$69,MATCH($V$15,$A$10:$A$69,0))) -> 0 | J7: =NPV($B$9,J$10:INDEX(J$10:J$69,MATCH($V$15,$A$10:$A$69,0))) -> 0 | K7: =NPV($B$9,K$10:INDEX(K$10:K$69,MATCH($V$15,$A$10:$A$69,0))) -> 0 | L7: =NPV($B$9,L$10:INDEX(L$10:L$69,MATCH($V$15,$A$10:$A$69,0))) -> 0 | M7: =NPV($B$9,M$10:INDEX(M$10:M$69,MATCH($V$15,$A$10:$A$69,0))) -> 0 | N7: =NPV($B$9,N$10:INDEX(N$10:N$69,MATCH($V$15,$A$10:$A$69,0))) -> 0 | P7: =SUM(Q7:S7) -> 0 | Q7: =NPV($B$9,Q$10:INDEX(Q$10:Q$69,MATCH($V$15,$A$10:$A$69,0))) -> 0 | R7: =NPV($B$9,R$10:INDEX(R$10:R$69,MATCH($V$15,$A$10:$A$69,0))) -> 0 | S7: =NPV($B$9,S$10:INDEX(S$10:S$69,MATCH($V$15,$A$10:$A$69,0))) -> 0
B8: Normaal | C8: CO2
A9: Discontovoet | B9: ='2 Design of the roof'!H192 -> 0.0225 | C9: 0.029 | F9: =Waterretentie!C13 -> 0 | G9: ='NCW Financieel'!G9+'NCW Financieel'!H9 -> 0 | H9: ='Luchtkwaliteit en klimaat'!E37 -> 0 | I9: ='Luchtkwaliteit en klimaat'!E38 -> 0 | J9: ='Waterretentie Groen dak'!C7 -> 0 | K9: ='Luchtkwaliteit en klimaat'!L26 -> 0 | L9: =Gezondheid!C18 -> 0 | M9: =Gezondheid!C17 -> 0 | N9: ='Imago en vestigingsklimaat'!C10 -> 0 | O9: ='NCW Financieel'!F9 -> 0 | Q9: ='NCW Financieel'!S9 -> 0 | R9: ='NCW Financieel'!T9 -> 0 | S9: ='NCW Financieel'!U9 -> 0
A10: 1 | B10: 0.97 | C10: =1/(1+$C$9)^A10 -> 0.9718172983 | D10: =E10-P10 -> 0 | E10: =SUM(F10:O10) -> 0 | F10: =$F$9 -> 0 | G10: ='NCW Financieel'!G10+'NCW Financieel'!H10 -> 0 | H10: =$H$9 -> 0 | I10: =$I$9 -> 0 | J10: =J9 -> 0 | K10: =$K$9 -> 0 | L10: =$L$9 -> 0 | M10: =$M$9 -> 0 | N10: =N9 -> 0 | O10: ='NCW Financieel'!F10 -> 0 | P10: =SUM(Q10:S10) -> 0 | Q10: ='NCW Financieel'!S10 -> 0 | R10: ='NCW Financieel'!T10 -> 0 | S10: ='NCW Financieel'!U10 -> 0
A11: 2 | B11: =1/(1+$A$7)^A11 -> 1 | C11: =1/(1+$C$9)^A11 -> 0.9444288614 | D11: =E11-P11 -> 0 | E11: =SUM(F11:N11) -> 0 | G11: ='NCW Financieel'!G11+'NCW Financieel'!H11 -> 0 | H11: =$H$9*1.03^(A11-$A$10) -> 0 | I11: =$I$9 -> 0 | K11: =$K$9 -> 0 | L11: =$L$9 -> 0 | M11: =$M$9 -> 0 | O11: ='NCW Financieel'!F11 -> 0 | P11: 0 | Q11: ='NCW Financieel'!S11 -> 0 | R11: ='NCW Financieel'!T11 -> 0 | S11: ='NCW Financieel'!U11 -> 0
A12: 3 | B12: 1 | C12: 0.9178123045 | D12: 0 | E12: 0 | F12: =F11*B12 -> 0 | G12: ='NCW Financieel'!G12+'NCW Financieel'!H12 -> 0 | H12: =$H$9*1.03^(A12-$A$10) -> 0 | I12: 0 | K12: 0 | L12: 0 | M12: 0 | O12: ='NCW Financieel'!F12 -> 0 | P12: 0 | Q12: ='NCW Financieel'!S12 -> 0 | R12: ='NCW Financieel'!T12 -> 0 | S12: ='NCW Financieel'!U12 -> 0
A13: 4 | B13: 1 | C13: 0.8919458742 | D13: 0 | E13: 0 | F13: =F12*B13 -> 0 | G13: ='NCW Financieel'!G13+'NCW Financieel'!H13 -> 0 | H13: 0 | I13: 0 | K13: 0 | L13: 0 | M13: 0 | O13: ='NCW Financieel'!F13 -> 0 | P13: 0 | Q13: ='NCW Financieel'!S13 -> 0 | R13: ='NCW Financieel'!T13 -> 0 | S13: ='NCW Financieel'!U13 -> 0
A14: 5 | B14: 1 | C14: 0.8668084297 | D14: 0 | E14: 0 | F14: 0 | G14: ='NCW Financieel'!G14+'NCW Financieel'!H14 -> 0 | H14: 0 | I14: 0 | K14: 0 | L14: 0 | M14: 0 | O14: ='NCW Financieel'!F14 -> 0 | P14: 0 | Q14: ='NCW Financieel'!S14 -> 0 | R14: ='NCW Financieel'!T14 -> 0 | S14: ='NCW Financieel'!U14 -> 0
A15: 6 | B15: 1 | C15: 0.8423794264 | D15: 0 | E15: 0 | F15: 0 | G15: ='NCW Financieel'!G15+'NCW Financieel'!H15 -> 0 | H15: 0 | I15: 0 | K15: 0 | L15: 0 | M15: 0 | O15: ='NCW Financieel'!F15 -> 0 | P15: 0 | Q15: ='NCW Financieel'!S15 -> 0 | R15: ='NCW Financieel'!T15 -> 0 | S15: ='NCW Financieel'!U15 -> 0 | U15: analyseperiode | V15: ='NCW Financieel'!Y7 -> 40
A16: 7 | B16: 1 | C16: 0.8186388983 | D16: 0 | E16: 0 | F16: 0 | G16: ='NCW Financieel'!G16+'NCW Financieel'!H16 -> 0 | H16: 0 | I16: 0 | K16: 0 | L16: 0 | M16: 0 | O16: ='NCW Financieel'!F16 -> 0 | P16: 0 | Q16: ='NCW Financieel'!S16 -> 0 | R16: ='NCW Financieel'!T16 -> 0 | S16: ='NCW Financieel'!U16 -> 0
A17: 8 | B17: 1 | C17: 0.7955674425 | D17: 0 | E17: 0 | F17: 0 | G17: ='NCW Financieel'!G17+'NCW Financieel'!H17 -> 0 | H17: 0 | I17: 0 | K17: 0 | L17: 0 | M17: 0 | O17: ='NCW Financieel'!F17 -> 0 | P17: 0 | Q17: ='NCW Financieel'!S17 -> 0 | R17: ='NCW Financieel'!T17 -> 0 | S17: ='NCW Financieel'!U17 -> 0
A18: 9 | B18: 1 | C18: 0.7731462026 | D18: 0 | E18: 0 | F18: 0 | G18: ='NCW Financieel'!G18+'NCW Financieel'!H18 -> 0 | H18: 0 | I18: 0 | K18: 0 | L18: 0 | M18: 0 | O18: ='NCW Financieel'!F18 -> 0 | P18: 0 | Q18: ='NCW Financieel'!S18 -> 0 | R18: ='NCW Financieel'!T18 -> 0 | S18: ='NCW Financieel'!U18 -> 0
A19: 10 | B19: 1 | C19: 0.7513568538 | D19: 0 | E19: 0 | F19: 0 | G19: ='NCW Financieel'!G19+'NCW Financieel'!H19 -> 0 | H19: 0 | I19: 0 | K19: 0 | L19: 0 | M19: 0 | O19: ='NCW Financieel'!F19 -> 0 | P19: 0 | Q19: ='NCW Financieel'!S19 -> 0 | R19: ='NCW Financieel'!T19 -> 0 | S19: ='NCW Financieel'!U19 -> 0
A20: 11 | B20: 1 | C20: 0.7301815878 | D20: 0 | E20: 0 | F20: 0 | G20: ='NCW Financieel'!G20+'NCW Financieel'!H20 -> 0 | H20: 0 | I20: 0 | K20: 0 | L20: 0 | M20: 0 | O20: ='NCW Financieel'!F20 -> 0 | P20: 0 | Q20: ='NCW Financieel'!S20 -> 0 | R20: ='NCW Financieel'!T20 -> 0 | S20: ='NCW Financieel'!U20 -> 0
A21: 12 | B21: 1 | C21: 0.709603098 | D21: 0 | E21: 0 | F21: 0 | G21: ='NCW Financieel'!G21+'NCW Financieel'!H21 -> 0 | H21: 0 | I21: 0 | K21: 0 | L21: 0 | M21: 0 | O21: ='NCW Financieel'!F21 -> 0 | P21: 0 | Q21: ='NCW Financieel'!S21 -> 0 | R21: ='NCW Financieel'!T21 -> 0 | S21: ='NCW Financieel'!U21 -> 0
A22: 13 | B22: 1 | C22: 0.6896045656 | D22: 0 | E22: 0 | F22: 0 | G22: ='NCW Financieel'!G22+'NCW Financieel'!H22 -> 0 | H22: 0 | I22: 0 | K22: 0 | L22: 0 | M22: 0 | O22: ='NCW Financieel'!F22 -> 0 | P22: 0 | Q22: ='NCW Financieel'!S22 -> 0 | R22: ='NCW Financieel'!T22 -> 0 | S22: ='NCW Financieel'!U22 -> 0
A23: 14 | B23: 1 | C23: 0.6701696458 | D23: 0 | E23: 0 | F23: 0 | G23: ='NCW Financieel'!G23+'NCW Financieel'!H23 -> 0 | H23: 0 | I23: 0 | K23: 0 | L23: 0 | M23: 0 | O23: ='NCW Financieel'!F23 -> 0 | P23: 0 | Q23: ='NCW Financieel'!S23 -> 0 | R23: ='NCW Financieel'!T23 -> 0 | S23: ='NCW Financieel'!U23 -> 0
A24: 15 | B24: 1 | C24: 0.6512824546 | D24: 0 | E24: 0 | F24: 0 | G24: ='NCW Financieel'!G24+'NCW Financieel'!H24 -> 0 | H24: 0 | I24: 0 | K24: 0 | L24: 0 | M24: 0 | O24: ='NCW Financieel'!F24 -> 0 | P24: 0 | Q24: ='NCW Financieel'!S24 -> 0 | R24: ='NCW Financieel'!T24 -> 0 | S24: ='NCW Financieel'!U24 -> 0
A25: 16 | B25: 1 | C25: 0.6329275555 | D25: 0 | E25: 0 | F25: 0 | G25: ='NCW Financieel'!G25+'NCW Financieel'!H25 -> 0 | H25: 0 | I25: 0 | K25: 0 | L25: 0 | M25: 0 | O25: ='NCW Financieel'!F25 -> 0 | P25: 0 | Q25: ='NCW Financieel'!S25 -> 0 | R25: ='NCW Financieel'!T25 -> 0 | S25: ='NCW Financieel'!U25 -> 0
A26: 17 | B26: 1 | C26: 0.6150899471 | D26: 0 | E26: 0 | F26: 0 | G26: ='NCW Financieel'!G26+'NCW Financieel'!H26 -> 0 | H26: 0 | I26: 0 | K26: 0 | L26: 0 | M26: 0 | O26: ='NCW Financieel'!F26 -> 0 | P26: 0 | Q26: ='NCW Financieel'!S26 -> 0 | R26: ='NCW Financieel'!T26 -> 0 | S26: ='NCW Financieel'!U26 -> 0
A27: 18 | B27: 1 | C27: 0.5977550506 | D27: 0 | E27: 0 | F27: 0 | G27: ='NCW Financieel'!G27+'NCW Financieel'!H27 -> 0 | H27: 0 | I27: 0 | K27: 0 | L27: 0 | M27: 0 | O27: ='NCW Financieel'!F27 -> 0 | P27: 0 | Q27: ='NCW Financieel'!S27 -> 0 | R27: ='NCW Financieel'!T27 -> 0 | S27: ='NCW Financieel'!U27 -> 0
A28: 19 | B28: 1 | C28: 0.5809086983 | D28: 0 | E28: 0 | F28: 0 | G28: ='NCW Financieel'!G28+'NCW Financieel'!H28 -> 0 | H28: 0 | I28: 0 | K28: 0 | L28: 0 | M28: 0 | O28: ='NCW Financieel'!F28 -> 0 | P28: 0 | Q28: ='NCW Financieel'!S28 -> 0 | R28: ='NCW Financieel'!T28 -> 0 | S28: ='NCW Financieel'!U28 -> 0
A29: 20 | B29: 1 | C29: 0.5645371218 | D29: 0 | E29: 0 | F29: 0 | G29: ='NCW Financieel'!G29+'NCW Financieel'!H29 -> 0 | H29: 0 | I29: 0 | K29: 0 | L29: 0 | M29: 0 | O29: ='NCW Financieel'!F29 -> 0 | P29: 0 | Q29: ='NCW Financieel'!S29 -> 0 | R29: ='NCW Financieel'!T29 -> 0 | S29: ='NCW Financieel'!U29 -> 0
A30: 21 | B30: 1 | C30: 0.5486269405 | D30: 0 | E30: 0 | F30: 0 | G30: ='NCW Financieel'!G30+'NCW Financieel'!H30 -> 0 | H30: 0 | I30: 0 | K30: 0 | L30: 0 | M30: 0 | O30: ='NCW Financieel'!F30 -> 0 | P30: 0 | Q30: ='NCW Financieel'!S30 -> 0 | R30: ='NCW Financieel'!T30 -> 0 | S30: ='NCW Financieel'!U30 -> 0
A31: 22 | B31: 1 | C31: 0.5331651512 | D31: 0 | E31: 0 | F31: 0 | G31: ='NCW Financieel'!G31+'NCW Financieel'!H31 -> 0 | H31: 0 | I31: 0 | K31: 0 | L31: 0 | M31: 0 | O31: ='NCW Financieel'!F31 -> 0 | P31: 0 | Q31: ='NCW Financieel'!S31 -> 0 | R31: ='NCW Financieel'!T31 -> 0 | S31: ='NCW Financieel'!U31 -> 0
A32: 23 | B32: 1 | C32: 0.5181391168 | D32: 0 | E32: 0 | F32: 0 | G32: ='NCW Financieel'!G32+'NCW Financieel'!H32 -> 0 | H32: 0 | I32: 0 | K32: 0 | L32: 0 | M32: 0 | O32: ='NCW Financieel'!F32 -> 0 | P32: 0 | Q32: ='NCW Financieel'!S32 -> 0 | R32: ='NCW Financieel'!T32 -> 0 | S32: ='NCW Financieel'!U32 -> 0
A33: 24 | B33: 1 | C33: 0.5035365566 | D33: 0 | E33: 0 | F33: 0 | G33: ='NCW Financieel'!G33+'NCW Financieel'!H33 -> 0 | H33: 0 | I33: 0 | K33: 0 | L33: 0 | M33: 0 | O33: ='NCW Financieel'!F33 -> 0 | P33: 0 | Q33: ='NCW Financieel'!S33 -> 0 | R33: ='NCW Financieel'!T33 -> 0 | S33: ='NCW Financieel'!U33 -> 0
A34: 25 | B34: 1 | C34: 0.4893455361 | D34: 0 | E34: 0 | F34: 0 | G34: ='NCW Financieel'!G34+'NCW Financieel'!H34 -> 0 | H34: 0 | I34: 0 | K34: 0 | L34: 0 | M34: 0 | O34: ='NCW Financieel'!F34 -> 0 | P34: 0 | Q34: ='NCW Financieel'!S34 -> 0 | R34: ='NCW Financieel'!T34 -> 0 | S34: ='NCW Financieel'!U34 -> 0
A35: 26 | B35: 1 | C35: 0.4755544568 | D35: 0 | E35: 0 | F35: 0 | G35: ='NCW Financieel'!G35+'NCW Financieel'!H35 -> 0 | H35: 0 | I35: 0 | K35: 0 | L35: 0 | M35: 0 | O35: ='NCW Financieel'!F35 -> 0 | P35: 0 | Q35: ='NCW Financieel'!S35 -> 0 | R35: ='NCW Financieel'!T35 -> 0 | S35: ='NCW Financieel'!U35 -> 0
A36: 27 | B36: 1 | C36: 0.4621520475 | D36: 0 | E36: 0 | F36: 0 | G36: ='NCW Financieel'!G36+'NCW Financieel'!H36 -> 0 | H36: 0 | I36: 0 | K36: 0 | L36: 0 | M36: 0 | O36: ='NCW Financieel'!F36 -> 0 | P36: 0 | Q36: ='NCW Financieel'!S36 -> 0 | R36: ='NCW Financieel'!T36 -> 0 | S36: ='NCW Financieel'!U36 -> 0
A37: 28 | B37: 1 | C37: 0.4491273542 | D37: 0 | E37: 0 | F37: 0 | G37: ='NCW Financieel'!G37+'NCW Financieel'!H37 -> 0 | H37: 0 | I37: 0 | K37: 0 | L37: 0 | M37: 0 | O37: ='NCW Financieel'!F37 -> 0 | P37: 0 | Q37: ='NCW Financieel'!S37 -> 0 | R37: ='NCW Financieel'!T37 -> 0 | S37: ='NCW Financieel'!U37 -> 0
A38: 29 | B38: 1 | C38: 0.436469732 | D38: 0 | E38: 0 | F38: 0 | G38: ='NCW Financieel'!G38+'NCW Financieel'!H38 -> 0 | H38: 0 | I38: 0 | K38: 0 | L38: 0 | M38: 0 | O38: ='NCW Financieel'!F38 -> 0 | P38: 0 | Q38: ='NCW Financieel'!S38 -> 0 | R38: ='NCW Financieel'!T38 -> 0 | S38: ='NCW Financieel'!U38 -> 0
A39: 30 | B39: 1 | C39: 0.4241688357 | D39: 0 | E39: 0 | F39: 0 | G39: ='NCW Financieel'!G39+'NCW Financieel'!H39 -> 0 | H39: 0 | I39: 0 | K39: 0 | L39: 0 | M39: 0 | O39: ='NCW Financieel'!F39 -> 0 | P39: 0 | Q39: ='NCW Financieel'!S39 -> 0 | R39: ='NCW Financieel'!T39 -> 0 | S39: ='NCW Financieel'!U39 -> 0
A40: 31 | B40: 1 | C40: 0.412214612 | D40: 0 | E40: 0 | F40: 0 | G40: ='NCW Financieel'!G40+'NCW Financieel'!H40 -> 0 | H40: 0 | I40: 0 | K40: 0 | L40: 0 | M40: 0 | O40: ='NCW Financieel'!F40 -> 0 | P40: 0 | Q40: ='NCW Financieel'!S40 -> 0 | R40: ='NCW Financieel'!T40 -> 0 | S40: ='NCW Financieel'!U40 -> 0
A41: 32 | B41: 1 | C41: 0.4005972905 | D41: 0 | E41: 0 | F41: 0 | G41: ='NCW Financieel'!G41+'NCW Financieel'!H41 -> 0 | H41: 0 | I41: 0 | K41: 0 | L41: 0 | M41: 0 | O41: ='NCW Financieel'!F41 -> 0 | P41: 0 | Q41: ='NCW Financieel'!S41 -> 0 | R41: ='NCW Financieel'!T41 -> 0 | S41: ='NCW Financieel'!U41 -> 0
A42: 33 | B42: 1 | C42: 0.3893073766 | D42: 0 | E42: 0 | F42: 0 | G42: ='NCW Financieel'!G42+'NCW Financieel'!H42 -> 0 | H42: 0 | I42: 0 | K42: 0 | L42: 0 | M42: 0 | O42: ='NCW Financieel'!F42 -> 0 | P42: =SUM(Q42:S42) -> 0 | Q42: ='NCW Financieel'!S42 -> 0 | R42: ='NCW Financieel'!T42 -> 0 | S42: ='NCW Financieel'!U42 -> 0
A43: 34 | B43: 1 | C43: 0.378335643 | D43: 0 | E43: 0 | F43: 0 | G43: ='NCW Financieel'!G43+'NCW Financieel'!H43 -> 0 | H43: 0 | I43: 0 | K43: 0 | L43: 0 | M43: 0 | O43: ='NCW Financieel'!F43 -> 0 | P43: 0 | Q43: ='NCW Financieel'!S43 -> 0 | R43: ='NCW Financieel'!T43 -> 0 | S43: ='NCW Financieel'!U43 -> 0
A44: 35 | B44: 1 | C44: 0.3676731224 | D44: 0 | E44: 0 | F44: 0 | G44: ='NCW Financieel'!G44+'NCW Financieel'!H44 -> 0 | H44: 0 | I44: 0 | K44: 0 | L44: 0 | M44: 0 | O44: ='NCW Financieel'!F44 -> 0 | P44: 0 | Q44: ='NCW Financieel'!S44 -> 0 | R44: ='NCW Financieel'!T44 -> 0 | S44: ='NCW Financieel'!U44 -> 0
A45: 36 | B45: 1 | C45: 0.3573111005 | D45: 0 | E45: 0 | F45: 0 | G45: ='NCW Financieel'!G45+'NCW Financieel'!H45 -> 0 | H45: 0 | I45: 0 | K45: 0 | L45: 0 | M45: 0 | O45: ='NCW Financieel'!F45 -> 0 | P45: 0 | Q45: ='NCW Financieel'!S45 -> 0 | R45: ='NCW Financieel'!T45 -> 0 | S45: ='NCW Financieel'!U45 -> 0
A46: 37 | B46: 1 | C46: 0.3472411084 | D46: 0 | E46: 0 | F46: 0 | G46: ='NCW Financieel'!G46+'NCW Financieel'!H46 -> 0 | H46: 0 | I46: 0 | K46: 0 | L46: 0 | M46: 0 | O46: ='NCW Financieel'!F46 -> 0 | P46: 0 | Q46: ='NCW Financieel'!S46 -> 0 | R46: ='NCW Financieel'!T46 -> 0 | S46: ='NCW Financieel'!U46 -> 0
A47: 38 | B47: 1 | C47: 0.3374549158 | D47: 0 | E47: 0 | F47: 0 | G47: ='NCW Financieel'!G47+'NCW Financieel'!H47 -> 0 | H47: 0 | I47: 0 | K47: 0 | L47: 0 | M47: 0 | O47: ='NCW Financieel'!F47 -> 0 | P47: 0 | Q47: ='NCW Financieel'!S47 -> 0 | R47: ='NCW Financieel'!T47 -> 0 | S47: ='NCW Financieel'!U47 -> 0
A48: 39 | B48: 1 | C48: 0.3279445246 | D48: 0 | E48: 0 | F48: 0 | G48: ='NCW Financieel'!G48+'NCW Financieel'!H48 -> 0 | H48: 0 | I48: 0 | K48: 0 | L48: 0 | M48: 0 | O48: ='NCW Financieel'!F48 -> 0 | P48: 0 | Q48: ='NCW Financieel'!S48 -> 0 | R48: ='NCW Financieel'!T48 -> 0 | S48: ='NCW Financieel'!U48 -> 0
A49: 40 | B49: 1 | C49: 0.3187021619 | D49: 0 | E49: 0 | F49: 0 | G49: ='NCW Financieel'!G49+'NCW Financieel'!H49 -> 0 | H49: 0 | I49: 0 | K49: 0 | L49: 0 | M49: 0 | O49: ='NCW Financieel'!F49 -> 0 | P49: 0 | Q49: ='NCW Financieel'!S49 -> 0 | R49: ='NCW Financieel'!T49 -> 0 | S49: ='NCW Financieel'!U49 -> 0
A50: 41 | B50: =1/(1+$A$7)^A50 -> 1 | C50: 0.309720274 | D50: 0 | E50: 0 | F50: =F49*B50 -> 0 | G50: ='NCW Financieel'!G50+'NCW Financieel'!H50 -> 0 | H50: 0 | I50: 0 | K50: 0 | L50: 0 | M50: 0 | O50: ='NCW Financieel'!F50 -> 0 | P50: 0 | Q50: ='NCW Financieel'!S50 -> 0 | R50: ='NCW Financieel'!T50 -> 0 | S50: ='NCW Financieel'!U50 -> 0
A51: 42 | B51: 1 | C51: 0.3009915199 | D51: 0 | E51: 0 | F51: 0 | G51: ='NCW Financieel'!G51+'NCW Financieel'!H51 -> 0 | H51: 0 | I51: 0 | K51: 0 | L51: 0 | M51: 0 | O51: ='NCW Financieel'!F51 -> 0 | P51: 0 | Q51: ='NCW Financieel'!S51 -> 0 | R51: ='NCW Financieel'!T51 -> 0 | S51: ='NCW Financieel'!U51 -> 0
A52: 43 | B52: 1 | C52: 0.2925087657 | D52: 0 | E52: 0 | F52: 0 | G52: ='NCW Financieel'!G52+'NCW Financieel'!H52 -> 0 | H52: 0 | I52: 0 | K52: 0 | L52: 0 | M52: 0 | O52: ='NCW Financieel'!F52 -> 0 | P52: 0 | Q52: ='NCW Financieel'!S52 -> 0 | R52: ='NCW Financieel'!T52 -> 0 | S52: ='NCW Financieel'!U52 -> 0
A53: 44 | B53: 1 | C53: 0.2842650784 | D53: 0 | E53: 0 | F53: 0 | G53: ='NCW Financieel'!G53+'NCW Financieel'!H53 -> 0 | H53: 0 | I53: 0 | K53: 0 | L53: 0 | M53: 0 | O53: ='NCW Financieel'!F53 -> 0 | P53: 0 | Q53: ='NCW Financieel'!S53 -> 0 | R53: ='NCW Financieel'!T53 -> 0 | S53: ='NCW Financieel'!U53 -> 0
A54: 45 | B54: 1 | C54: 0.2762537205 | D54: 0 | E54: 0 | F54: 0 | G54: ='NCW Financieel'!G54+'NCW Financieel'!H54 -> 0 | H54: 0 | I54: 0 | K54: 0 | L54: 0 | M54: 0 | O54: ='NCW Financieel'!F54 -> 0 | P54: 0 | Q54: ='NCW Financieel'!S54 -> 0 | R54: ='NCW Financieel'!T54 -> 0 | S54: ='NCW Financieel'!U54 -> 0
A55: 46 | B55: 1 | C55: 0.2684681443 | D55: 0 | E55: 0 | F55: 0 | G55: ='NCW Financieel'!G55+'NCW Financieel'!H55 -> 0 | H55: 0 | I55: 0 | K55: 0 | L55: 0 | M55: 0 | O55: ='NCW Financieel'!F55 -> 0 | P55: 0 | Q55: ='NCW Financieel'!S55 -> 0 | R55: ='NCW Financieel'!T55 -> 0 | S55: ='NCW Financieel'!U55 -> 0
A56: 47 | B56: 1 | C56: 0.2609019867 | D56: 0 | E56: 0 | F56: 0 | G56: ='NCW Financieel'!G56+'NCW Financieel'!H56 -> 0 | H56: 0 | I56: 0 | K56: 0 | L56: 0 | M56: 0 | O56: ='NCW Financieel'!F56 -> 0 | P56: 0 | Q56: ='NCW Financieel'!S56 -> 0 | R56: ='NCW Financieel'!T56 -> 0 | S56: ='NCW Financieel'!U56 -> 0
A57: 48 | B57: 1 | C57: 0.2535490639 | D57: 0 | E57: 0 | F57: 0 | G57: ='NCW Financieel'!G57+'NCW Financieel'!H57 -> 0 | H57: 0 | I57: 0 | K57: 0 | L57: 0 | M57: 0 | O57: ='NCW Financieel'!F57 -> 0 | P57: 0 | Q57: ='NCW Financieel'!S57 -> 0 | R57: ='NCW Financieel'!T57 -> 0 | S57: ='NCW Financieel'!U57 -> 0
A58: 49 | B58: 1 | C58: 0.2464033662 | D58: 0 | E58: 0 | F58: 0 | G58: ='NCW Financieel'!G58+'NCW Financieel'!H58 -> 0 | H58: 0 | I58: 0 | K58: 0 | L58: 0 | M58: 0 | O58: ='NCW Financieel'!F58 -> 0 | P58: 0 | Q58: ='NCW Financieel'!S58 -> 0 | R58: ='NCW Financieel'!T58 -> 0 | S58: ='NCW Financieel'!U58 -> 0
A59: 50 | B59: 1 | C59: 0.2394590537 | D59: 0 | E59: 0 | F59: 0 | G59: ='NCW Financieel'!G59+'NCW Financieel'!H59 -> 0 | H59: 0 | I59: 0 | K59: 0 | L59: 0 | M59: 0 | O59: ='NCW Financieel'!F59 -> 0 | P59: 0 | Q59: ='NCW Financieel'!S59 -> 0 | R59: ='NCW Financieel'!T59 -> 0 | S59: ='NCW Financieel'!U59 -> 0
A60: 51 | B60: 1 | C60: 0.2327104506 | D60: 0 | E60: 0 | F60: 0 | G60: ='NCW Financieel'!G60+'NCW Financieel'!H60 -> 0 | H60: 0 | I60: 0 | K60: 0 | L60: 0 | M60: 0 | O60: ='NCW Financieel'!F60 -> 0 | P60: 0 | Q60: ='NCW Financieel'!S60 -> 0 | R60: ='NCW Financieel'!T60 -> 0 | S60: ='NCW Financieel'!U60 -> 0
A61: 52 | B61: 1 | C61: 0.2261520414 | D61: 0 | E61: 0 | F61: 0 | G61: ='NCW Financieel'!G61+'NCW Financieel'!H61 -> 0 | H61: 0 | I61: 0 | K61: 0 | L61: 0 | M61: 0 | O61: ='NCW Financieel'!F61 -> 0 | P61: 0 | Q61: ='NCW Financieel'!S61 -> 0 | R61: ='NCW Financieel'!T61 -> 0 | S61: ='NCW Financieel'!U61 -> 0
A62: 53 | B62: 1 | C62: 0.2197784659 | D62: 0 | E62: 0 | F62: 0 | G62: ='NCW Financieel'!G62+'NCW Financieel'!H62 -> 0 | H62: 0 | I62: 0 | K62: 0 | L62: 0 | M62: 0 | O62: ='NCW Financieel'!F62 -> 0 | P62: 0 | Q62: ='NCW Financieel'!S62 -> 0 | R62: ='NCW Financieel'!T62 -> 0 | S62: ='NCW Financieel'!U62 -> 0
A63: 54 | B63: 1 | C63: 0.213584515 | D63: 0 | E63: 0 | F63: 0 | G63: ='NCW Financieel'!G63+'NCW Financieel'!H63 -> 0 | H63: 0 | I63: 0 | K63: 0 | L63: 0 | M63: 0 | O63: ='NCW Financieel'!F63 -> 0 | P63: 0 | Q63: ='NCW Financieel'!S63 -> 0 | R63: ='NCW Financieel'!T63 -> 0 | S63: ='NCW Financieel'!U63 -> 0
A64: 55 | B64: 1 | C64: 0.2075651263 | D64: 0 | E64: 0 | F64: 0 | G64: ='NCW Financieel'!G64+'NCW Financieel'!H64 -> 0 | H64: 0 | I64: 0 | K64: 0 | L64: 0 | M64: 0 | O64: ='NCW Financieel'!F64 -> 0 | P64: 0 | Q64: ='NCW Financieel'!S64 -> 0 | R64: ='NCW Financieel'!T64 -> 0 | S64: ='NCW Financieel'!U64 -> 0
A65: 56 | B65: 1 | C65: 0.2017153803 | D65: 0 | E65: 0 | F65: 0 | G65: ='NCW Financieel'!G65+'NCW Financieel'!H65 -> 0 | H65: 0 | I65: 0 | K65: 0 | L65: 0 | M65: 0 | O65: ='NCW Financieel'!F65 -> 0 | P65: 0 | Q65: ='NCW Financieel'!S65 -> 0 | R65: ='NCW Financieel'!T65 -> 0 | S65: ='NCW Financieel'!U65 -> 0
A66: 57 | B66: 1 | C66: 0.1960304959 | D66: 0 | E66: 0 | F66: 0 | G66: ='NCW Financieel'!G66+'NCW Financieel'!H66 -> 0 | H66: 0 | I66: 0 | K66: 0 | L66: 0 | M66: 0 | O66: ='NCW Financieel'!F66 -> 0 | P66: 0 | Q66: ='NCW Financieel'!S66 -> 0 | R66: ='NCW Financieel'!T66 -> 0 | S66: ='NCW Financieel'!U66 -> 0
A67: 58 | B67: 1 | C67: 0.1905058269 | D67: 0 | E67: 0 | F67: 0 | G67: ='NCW Financieel'!G67+'NCW Financieel'!H67 -> 0 | H67: 0 | I67: 0 | K67: 0 | L67: 0 | M67: 0 | O67: ='NCW Financieel'!F67 -> 0 | P67: 0 | Q67: ='NCW Financieel'!S67 -> 0 | R67: ='NCW Financieel'!T67 -> 0 | S67: ='NCW Financieel'!U67 -> 0
A68: 59 | B68: 1 | C68: 0.185136858 | D68: 0 | E68: 0 | F68: 0 | G68: ='NCW Financieel'!G68+'NCW Financieel'!H68 -> 0 | H68: 0 | I68: 0 | K68: 0 | L68: 0 | M68: 0 | O68: ='NCW Financieel'!F68 -> 0 | P68: 0 | Q68: ='NCW Financieel'!S68 -> 0 | R68: ='NCW Financieel'!T68 -> 0 | S68: ='NCW Financieel'!U68 -> 0
A69: 60 | B69: 1 | C69: 0.1799192012 | D69: 0 | E69: 0 | F69: 0 | G69: ='NCW Financieel'!G69+'NCW Financieel'!H69 -> 0 | H69: 0 | I69: 0 | K69: 0 | L69: 0 | M69: 0 | O69: ='NCW Financieel'!F69 -> 0 | P69: 0 | Q69: ='NCW Financieel'!S69 -> 0 | R69: ='NCW Financieel'!T69 -> 0 | S69: ='NCW Financieel'!U69 -> 0
E71: Subtotaal | F71: Waterretentie | H71: Klimaat | I71: Luchtkwaliteit | L71: Gezondheidseffect: vermeden zorgkosten | M71: Gezondheidseffect: vermeden arbeidsverlies | P71: Subtotaal | Q71: Meerkosten t.o.v. ref. alternatief (excl. subsidies) | S71: Beheer- en onderhoud
E72: =E7 -> 0 | F72: =F7 -> 0 | H72: =H7 -> 0 | I72: =I7 -> 0 | L72: =L7 -> 0 | M72: =M7 -> 0 | P72: =P7 -> 0 | Q72: =Q7 -> 0 | S72: =S7 -> 0
D77: Kosten | E77: =P72 -> 0
D78: Baten | E78: =E72 -> 0
D79: Saldo | E79: =E78-E77 -> 0

Sheet Prijspeil (hidden)
C6: 2005 | D6: 84.88
C7: 2006 | D7: 85.82
C8: 2007 | D8: 87.2
C9: 2008 | D9: 89.37
C10: 2009 | D10: 90.44
C11: 2010 | D11: 91.59
C12: 2011 | D12: 93.73
C13: 2012 | D13: 96.04
C14: 2013 | D14: 98.44
C15: 2014 | D15: 99.4
C16: 2015 | D16: 100
C17: 2016 | D17: 100.32
C18: 2017 | D18: 101.7
C19: 2018 | D19: 103.44
C20: 2019 | D20: 106.16
C21: 2020 | D21: 107.51

Sheet Waterretentie Groen dak (hidden)
B1: Waterretentie
B3: Retentie
B4: Waardering (schaduwprijs) waterretentie in stedelijk gebied HHSK | C4: =500*(Prijspeil!D21/Prijspeil!D18) -> 528.5644051 | D4: euro per m3 | E4: Zie ook 7SE
B6: Waterberging totaal | C6: =H20*H21/1000 -> 0 | D6: m3
B7: Waterberging | C7: =C4*C6 -> 0 | D7: Eenmalig
B11: Alleen bij MKBA! = geen subsidie (dus niet bij financiele businesscase)
B13: Totale baat waterretentie | C13: =C7 -> 0 | D13: Eenmalig! In beginjaar
B18: Blauwe daken vangen water op. Ze spelen een belangrijke rol bij erg nat of juist droog weer.
H19: Invoer
E20: Hoeveel vierkante meter waterberging legt u aan? | H20: ='2 Design of the roof'!H22 -> 0 | I20: m²
E21: Hoeveel mm water bergt u op het dak? | H21: 10 | I21: mm

Sheet Waterretentie (hidden)
B1: Waterretentie
B3: Retentie
B4: Waardering (schaduwprijs) waterretentie in stedelijk gebied HHSK | C4: =IF('2 Design of the roof'!H69="Ja",500*C6*(Prijspeil!D21/Prijspeil!D18),0) -> 0 | D4: euro per m3 | E4: Zie ook 7SE
B6: Waterberging totaal | C6: ='2 Design of the roof'!H73/1000*'2 Design of the roof'!H72 -> 0 | D6: m3
B7: Waterhergebruik | C7: =IF('2 Design of the roof'!H78="Ja",'2 Design of the roof'!H79/1000*'2 Design of the roof'!H80*(Prijspeil!D21/Prijspeil!D20),0) -> 0 | D7: per jaar | E7: Prijspeil 2020
B11: Alleen bij MKBA! = geen subsidie (dus niet bij financiele businesscase)
B13: Totale baat waterretentie | C13: =(C4) -> 0 | D13: Eenmalig! In beginjaar
B14: Totale baat waterhergebruik | C14: =(C6*C7) -> 0 | D14: per jaar

Sheet Luchtkwaliteit en klimaat (hidden)
B1: Luchtkwaliteit en klimaat
B3: Luchtkwaliteit en klimaat | C3: Project | D3: Referentie | E3: Per saldo | G3: https://www.rivm.nl/bibliotheek/rapporten/2019-0011.pdf | K3: Afvangen Fijnstof met Groen dak
B4: Jaarlijkse CO2 winst | C4: ='Luchtkwaliteit en klimaat'!$C$29*C12*C19*(Prijspeil!$D$21/Prijspeil!$D$19) -> 0 | D4: 0 | E4: =C4-D4 -> 0 | K4: Oppervlakte groen dak | L4: ='2 Design of the roof'!H62 -> 0 | M4: m2
B5: Jaarlijkse Nox reductie | C5: ='Luchtkwaliteit en klimaat'!$C$29*C13*C20*(Prijspeil!$D$21/Prijspeil!$D$19) -> 0 | D5: 0 | E5: =C5-D5 -> 0 | G5: Gerelateerd aan geel/elektriciteit/zonnepanelen | K5: Binnen of buiten de bebouwde kom? | L5: Binnen
B6: Jaarlijkse SO2 reductie | C6: ='Luchtkwaliteit en klimaat'!$C$29*C14*C21*(Prijspeil!$D$21/Prijspeil!$D$19) -> 0 | D6: 0 | E6: =C6-D6 -> 0
B7: Jaarlijkse VOS reductie | C7: ='Luchtkwaliteit en klimaat'!$C$29*C15*C22*(Prijspeil!$D$21/Prijspeil!$D$19) -> 0 | D7: 0 | E7: =C7-D7 -> 0 | L7: =L4*0.0001 -> 0 | M7: ha
B8: Jaarlijkse fijn stof reductie | C8: ='Luchtkwaliteit en klimaat'!$C$29*C16*C23*(Prijspeil!$D$21/Prijspeil!$D$19) -> 0 | D8: 0 | E8: =C8-D8 -> 0
B10: Kengetallen | K10: Kengetallen
B11: Vermeden uitstoot | K11: Eenheidscorrectie cm/s naar kg/ha/jaar | L11: 3.1536 | M11: (-)
B12: CO2 | C12: 0.69 | D12: kg/kWh | E12: NEV (2017) | K12: Depositiesnelheid Fijnstof Groene Daken | L12: 0.33 | M12: cm/s
B13: NOX | C13: =0.71/1000 -> 0.00071 | D13: kg/kWh | E13: CE Delft (2014) | K13: Maatschappelijke waarde Fijnstof | L13: 45.22 | M13: €/kg
B14: SO2 | C14: =0.39/1000 -> 0.00039 | D14: kg/kWh | E14: CE Delft (2014) | K14: Totaal: | L14: =L13*L12*$L$11*$L$7 -> 0
B15: VOS | C15: =0.56/1000 -> 0.00056 | D15: kg/kWh | E15: CE Delft (2014) | K15: Depositiesnelheid Stikstofdioxide Groene Daken | L15: 0.5 | M15: cm/s
B16: Fijn stof | C16: =0.03/1000 -> 3e-05 | D16: kg/kWh | E16: CE Delft (2014) | K16: Maatschappelijke waarde Stikstofdioxide | L16: 35.18 | M16: €/kg
K17: Totaal: | L17: =L16*L15*$L$11*$L$7 -> 0
B18: Milieuprijzen | K18: Depositiesnelheid Zwaveldioxide Groene Daken | L18: 0.72 | M18: cm/s
B19: CO2 | C19: 0.048 | D19: Euro/kg | E19: CE Delft (2018) | K19: Maatschappelijke waarde Zwaveldioxide | L19: 25.24 | M19: €/kg
B20: NOX | C20: 35 | D20: Euro/kg | E20: CE Delft (2018) | K20: Totaal: | L20: =L19*L18*$L$11*$L$7 -> 0
B21: SO2 | C21: 24.4 | D21: Euro/kg | E21: CE Delft (2018) | K21: Depositiesnelheid Ozon Groene Daken | L21: 0.75 | M21: cm/s
B22: VOS | C22: 2.29 | D22: Euro/kg | E22: CE Delft (2018) | K22: Maatschappelijke waarde Ozon | L22: 4.24 | M22: €/kg
B23: Fijn stof | C23: 43.5 | D23: Euro/kg | E23: CE Delft (2018) | K23: Totaal: | L23: =L22*L21*$L$11*$L$7 -> 0
B25: Aannames
B26: Energieopbrengst per paneel | C26: 300 | D26: Wp | G26: https://www.zonnepanelen-weetjes.nl/prijzen-zonnepanelen/ | K26: Totale Maatschappelijke waarde: | L26: =SUM(L23,L20,L17,L14) -> 0 | M26: per jaar
B27: Aantal panelen | C27: ='2 Design of the roof'!H93 -> 0 | D27: stuks | G27: ='2 Design of the roof'!Q97 -> https://www.zonneplan.nl/kenniscentrum/zonnepanelen/levensduur
B28: Correctiefactor efficiëntie panelen | C28: 0.9 | D28: (-) | G28: =IF(ISNUMBER(SEARCH("Zuid", '2 Design of the roof'!#REF!)), 0.9, 0.5) -> 0.5
B29: Aanname kWh opwekking zonnepanelen | C29: =C26*C27*C28 -> 0 | D29: kWh per jaar
B30: Gebruikte energie (kWh) | C30: ='2 Design of the roof'!H113 -> 0
B31: Maatschappelijk rendement | C31: 3
B32: Levensduur dak | C32: ='2 Design of the roof'!H97 -> 25
B33: Prijs kWh stroom | C33: ='2 Design of the roof'!H100/1.21 -> 0.1818181818 | D33: Exclusief BTW (21%)
B35: Baten per jaar | U35: Depositiesnelheid
B36: Energieopbrengst Zonnepanelen | E36: =C33*C29 -> 0
B37: CO2 winst | E37: =E4 -> 0 | U37: Stikstofdioxide
B38: Luchtkwaliteit | E38: =SUM(E5:E8) -> 0
B40: Totaal baten per jaar (lucht kwaliteit en klimaat) | E40: =SUM(E4:E8) -> 0

Sheet Gezondheid (hidden)
B1: Gezondheidseffect door meerdere factoren
B3: Gezondheidseffect | E3: Bron
B4: Kengetallen
B5: Minder patiënten per 1000 inwoners bij 1% meer groen binnen 1 km | C5: 0.835 | D5: patiënten | E5: Maas e.a. 2009
B6: Zorgkosten | C6: =917*(Prijspeil!D21/Prijspeil!D8) -> 1130.581078 | D6: euro per patiënt | E6: KPMG 2012; RIVM 2007
B7: Voorkomen arbeidsverlies | C7: =6679*(Prijspeil!D21/Prijspeil!D20) -> 6763.934533 | D7: per patient | E7: CBS2019
B9: Aannames
B10: Minder patiënten per 1000 inwoners bij 1% meer groen binnen 200 m | C10: =C5/5 -> 0.167 | D10: Dit is 1/5 van 0,835
B11: Percentage meer groen door dak | C11: 0.01
B13: Minder patiënten bij 1% meer groen binnen 2000 | C13: =(C10/1000)*C14 -> 0.02505
B14: Aantal personen met uitzicht op dak | C14: 150 | D14: personen
B16: Baten per jaar
B17: Vermeden zorgkosten | C17: =IF(C20>0,C13*C6,0) -> 0 | D17: euro per jaar
B18: Minder arbeidsverlies | C18: =IF(C20>0.1,C13*C7,0) -> 0 | D18: euro per jaar
B20: Aantal groenvlakken op het dak | C20: =IF(('2 Design of the roof'!H62)>1,1,0) -> 0
B22: TOTAAL GEZONDHEIDSEFFECT | C22: =IF(C20=1,(C17+C18),0) -> 0 | D22: euro per jaar
B26: Gezondheid updaten met getallen uit TEEBstad
B27: https://www.rivm.nl/bibliotheek/rapporten/2019-0011.pdf

Sheet Imago en vestigingsklimaat (hidden)
B1: Meerdere indicatoren voor effect op imago en vestigingsklimaat
B3: Vastgoedwaarde | H3: https://www.rivm.nl/bibliotheek/rapporten/2019-0011.pdf
B4: Uitzicht op groen leidt tot stijging woningwaarde in een van range 1,4-20% uit literatuur (zie: https://www.ncbi.nlm.nih.gov/pmc/articles/PMC3524597/)
B5: Aanname (middenwaarde) | C5: =_xlfn.IFS(C8<501,1.4%,C8<1001,2.5%,C8<2001,5%,C8<3001,7.5%,C8<4001,10%,C8<5001,12.5%,C8<6001,15%,C8<7001,17.5%,C8<8001,20%) -> 0.014 | E5: De vastgoedwaarde stijging reflecteert de volgende sub-effecten: esthetische waardering, geluiddemping, productiviteit en comfort).
B6: WOZ waarde | C6: ='1 Current state of the building'!F26 -> 0
B8: Aantal groenvlakken op het dak | C8: ='2 Design of the roof'!H62 -> 0
B10: Totale baat vastgoedwaarde | C10: =IF(C8>=1,C6*C5,0) -> 0 | D10: euro op het moment dat het pand verkocht wordt (aanname: in jaar 2)
B12: Leegstand
B13: Gemiddelde leegstand | C13: nvt | D13: %
B14: Gederfde huurinkomsten
B15: Totale baat verminderde leegstand | D15: euro per jaar
B17: Totale baat verminderde leegstand | C17: 0 | D17: euro per jaar
B20: Imago eigenaar: kwalitatief
B22: Vestigingsklimaat van de wijk en stad: kwalitatief
